{"text_format":"1","workbook":"xlsx","n_sheets":1,"sheets":["28.04.2023"],"not_rendered":{"charts":0,"images":0,"macros":0,"external_links":0,"defined_names":0,"comments":0,"pivot_tables":0},"unopened":[],"bounds":{"document_bytes":16777216,"sheet_cells":100000,"rows_first":2000,"rows_last":500,"rows_between":2000,"halvings":0,"cell_chars":16384,"cell_head_chars":4096},"cells_cut":0,"cells_raw":0,"read":"whole","date_system":"1900"}

{"sheet":"28.04.2023","index":0,"n_rows":630,"n_cols":23,"rows_kept":630,"cut":false,"hidden":false,"merged":[[616,16,616,21],[616,9,616,10],[618,1,618,3],[619,1,619,3],[620,1,620,3],[616,1,617,3],[616,11,616,12],[616,4,616,5],[616,6,616,7],[621,1,621,3],[622,1,622,3],[623,1,623,3],[624,1,624,3],[616,0,617,0],[377,0,404,0],[405,0,496,0],[497,0,560,0],[561,0,576,0],[577,0,588,0],[589,0,612,0],[377,1,404,1],[405,1,496,1],[497,1,560,1],[485,2,488,2],[489,2,492,2],[493,2,496,2],[537,2,540,2],[501,2,504,2],[505,2,508,2],[509,2,512,2],[513,2,516,2],[517,2,520,2],[521,2,524,2],[626,1,626,3],[627,1,627,3],[577,1,588,1],[625,1,625,3],[385,2,388,2],[389,2,392,2],[393,2,396,2],[589,1,612,1],[561,1,576,1],[401,2,404,2],[405,2,408,2],[409,2,412,2],[413,2,416,2],[417,2,420,2],[449,2,452,2],[453,2,456,2],[457,2,460,2],[497,2,500,2],[461,2,464,2],[465,2,468,2],[469,2,472,2],[473,2,476,2],[477,2,480,2],[481,2,484,2],[293,0,300,0],[301,0,304,0],[305,0,308,0],[309,0,320,0],[321,0,340,0],[341,0,364,0],[365,0,368,0],[369,0,372,0],[373,0,376,0],[5,0,52,0],[53,0,100,0],[101,0,132,0],[133,0,140,0],[141,0,144,0],[145,0,204,0],[205,0,256,0],[257,0,280,0],[281,0,292,0],[2,6,2,10],[2,11,2,12],[2,17,2,18],[5,1,52,1],[41,2,44,2],[45,2,48,2],[49,2,52,2],[5,3,8,3],[9,3,12,3],[13,3,16,3],[5,2,8,2],[9,2,12,2],[13,2,16,2],[17,2,20,2],[21,2,24,2],[25,2,28,2],[29,2,32,2],[33,2,36,2],[37,2,40,2],[17,3,20,3],[21,3,24,3],[25,3,28,3],[29,3,32,3],[33,3,36,3],[53,1,100,1],[61,2,64,2],[65,2,68,2],[69,2,72,2],[73,2,76,2],[77,2,80,2],[81,2,84,2],[85,2,88,2],[89,2,92,2],[93,2,96,2],[97,2,100,2],[53,2,56,2],[57,2,60,2],[57,3,60,3],[61,3,64,3],[65,3,68,3],[69,3,72,3],[73,3,76,3],[77,3,80,3],[81,3,84,3],[85,3,88,3],[89,3,92,3],[365,1,368,1],[369,1,372,1],[257,1,280,1],[281,1,292,1],[293,1,300,1],[301,1,304,1],[305,1,308,1],[101,1,132,1],[133,1,140,1],[141,1,144,1],[145,1,204,1],[205,1,256,1],[373,1,376,1],[309,1,320,1],[321,1,340,1],[341,1,364,1],[121,2,124,2],[125,2,128,2],[129,2,132,2],[133,2,136,2],[173,2,176,2],[137,2,140,2],[253,2,256,2],[217,2,220,2],[293,2,296,2],[257,2,260,2],[221,2,224,2],[225,2,228,2],[229,2,232,2],[233,2,236,2],[237,2,240,2],[241,2,244,2],[245,2,248,2],[249,2,252,2],[333,2,336,2],[297,2,300,2],[101,2,104,2],[105,2,108,2],[109,2,112,2],[113,2,116,2],[117,2,120,2],[213,2,216,2],[177,2,180,2],[141,2,144,2],[145,2,148,2],[149,2,152,2],[153,2,156,2],[157,2,160,2],[161,2,164,2],[165,2,168,2],[169,2,172,2],[181,2,184,2],[185,2,188,2],[189,2,192,2],[193,2,196,2],[197,2,200,2],[201,2,204,2],[205,2,208,2],[209,2,212,2],[261,2,264,2],[265,2,268,2],[269,2,272,2],[273,2,276,2],[277,2,280,2],[281,2,284,2],[285,2,288,2],[289,2,292,2],[373,2,376,2],[337,2,340,2],[301,2,304,2],[305,2,308,2],[309,2,312,2],[313,2,316,2],[317,2,320,2],[321,2,324,2],[325,2,328,2],[329,2,332,2],[357,2,360,2],[361,2,364,2],[365,2,368,2],[369,2,372,2],[341,2,344,2],[345,2,348,2],[349,2,352,2],[353,2,356,2],[377,2,380,2],[397,2,400,2],[441,2,444,2],[445,2,448,2],[437,2,440,2],[421,2,424,2],[425,2,428,2],[429,2,432,2],[433,2,436,2],[381,2,384,2],[525,2,528,2],[529,2,532,2],[533,2,536,2],[541,2,544,2],[545,2,548,2],[549,2,552,2],[553,2,556,2],[557,2,560,2],[601,2,604,2],[577,2,580,2],[605,2,608,2],[609,2,612,2],[593,2,596,2],[597,2,600,2],[561,2,564,2],[565,2,568,2],[569,2,572,2],[573,2,576,2],[589,2,592,2],[37,3,40,3],[41,3,44,3],[45,3,48,3],[49,3,52,3],[53,3,56,3],[581,2,584,2],[585,2,588,2],[101,3,104,3],[105,3,108,3],[109,3,112,3],[113,3,116,3],[117,3,120,3],[93,3,96,3],[97,3,100,3],[141,3,144,3],[145,3,148,3],[149,3,152,3],[153,3,156,3],[157,3,160,3],[121,3,124,3],[125,3,128,3],[129,3,132,3],[133,3,136,3],[137,3,140,3],[197,3,200,3],[161,3,164,3],[165,3,168,3],[169,3,172,3],[173,3,176,3],[177,3,180,3],[181,3,184,3],[185,3,188,3],[189,3,192,3],[193,3,196,3],[237,3,240,3],[201,3,204,3],[205,3,208,3],[209,3,212,3],[213,3,216,3],[217,3,220,3],[221,3,224,3],[225,3,228,3],[229,3,232,3],[233,3,236,3],[277,3,280,3],[241,3,244,3],[245,3,248,3],[249,3,252,3],[253,3,256,3],[257,3,260,3],[261,3,264,3],[265,3,268,3],[269,3,272,3],[273,3,276,3],[317,3,320,3],[281,3,284,3],[285,3,288,3],[289,3,292,3],[293,3,296,3],[297,3,300,3],[301,3,304,3],[305,3,308,3],[309,3,312,3],[313,3,316,3],[357,3,360,3],[321,3,324,3],[325,3,328,3],[329,3,332,3],[333,3,336,3],[337,3,340,3],[341,3,344,3],[345,3,348,3],[349,3,352,3],[353,3,356,3],[397,3,400,3],[361,3,364,3],[365,3,368,3],[369,3,372,3],[373,3,376,3],[377,3,380,3],[381,3,384,3],[385,3,388,3],[389,3,392,3],[393,3,396,3],[437,3,440,3],[401,3,404,3],[405,3,408,3],[409,3,412,3],[413,3,416,3],[417,3,420,3],[421,3,424,3],[425,3,428,3],[429,3,432,3],[433,3,436,3],[477,3,480,3],[441,3,444,3],[445,3,448,3],[449,3,452,3],[453,3,456,3],[457,3,460,3],[461,3,464,3],[465,3,468,3],[469,3,472,3],[473,3,476,3],[517,3,520,3],[481,3,484,3],[485,3,488,3],[489,3,492,3],[493,3,496,3],[497,3,500,3],[501,3,504,3],[505,3,508,3],[509,3,512,3],[513,3,516,3],[557,3,560,3],[521,3,524,3],[525,3,528,3],[529,3,532,3],[533,3,536,3],[537,3,540,3],[541,3,544,3],[545,3,548,3],[549,3,552,3],[553,3,556,3],[609,3,612,3],[581,3,584,3],[585,3,588,3],[589,3,592,3],[593,3,596,3],[597,3,600,3],[601,3,604,3],[577,3,580,3],[561,3,564,3],[565,3,568,3],[569,3,572,3],[573,3,576,3],[605,3,608,3]]}
[null,"Неделя: 04.01.2021-10.01.2021 (2 неделя 2021)"]
[null,"МО: ОКТЯБРЬСКИЙ РАЙОН",null,null,null,null,1,2,3,4,5,6,7,8,9,10,11,12,13,14,15,16]
[null,null,null,null,null,"2023-04-28","АО \"Октябрьская аптека\"","АО Октябрьская аптека","АО Октябрьская аптека","АО Октябрьская аптека","АО Октябрьская аптека","АО \"Няганская аптека\"","АО \"Няганская аптека\"","ООО \"Прогресс\" ","ООО      \"Волосе-вич\"","Аптека","ООО \"Ригла-Сургут\"","ИП Бобрик Г.В","ИП Бобрик Г.В","Зеленая Аптека","ООО \"МПП УрСиб\"","ИП Простякова И.А."]
[null,"МНН препарата",null,"Торговое наименование",null,"Октябрьский район (свод)","пгт. Приобье, ул.Югорская, д.1","пгт. Талинка, мкр.Центральный, д. 45","пгт.Октябрьское, ул.Ленина, д.15","п.Унъюган, ул.Газпромовская, д.22","с.Перегребное, ул.Советская,             д 25","пгт.Талинка,                           1 микрорайон, д.44","п.Талинка, Центральный микрорайон, д.12","с.Малый Атлым, ул.Московская, д.2В","п.Унъюган, ул.Тюменская, д.53Б","пгт Андра, мкр Набережный, д 45Б","пгт.Приобье,     ул. Центральная, д.1а","пгт.Октябрьское Октябрьский р-н ул.Ленина д.46","пгт.Октябрьское Октябрьский р-н ул.50 лет Победы д.11","пгт. Приобье, ул. Центральная 3, Пионеров 6б","Октябрьский р-н, п.Унъюган, ул. 40 лет Победы д.16а"," с. Перегребное, ул. Советская,     д.28"]
[null,"МНН препарата","№ п/п","Торговое наименование","Телефон / Данные группы показателей",null,"83467832813","83467245071","83467821490","83467248362","83467838018","83467249392","83467249105","89088816955","89227900338","-","83467851847","83467821480","89519655659","-","-","83467838718"]
[1,"Интерферон альфа*","1","Альфаферон","Минимальная цена"]
["Интерферон альфа *","Интерферон альфа *","1","Альфаферон","Максимальная цена"]
["Интерферон альфа *","Интерферон альфа *","1","Альфаферон","Кол-во упаковок",{"$f":"SUM(G8:V8)","v":0}]
["Интерферон альфа *","Интерферон альфа *","1","Альфаферон","Форма выпуска",null,null,null,null,null,null,null,null,null,null,null,null,null,null,null,null,""]
["Интерферон альфа *","Интерферон альфа *","2","Вэллферон","Минимальная цена"]
["Интерферон альфа *","Интерферон альфа *","2","Вэллферон","Максимальная цена"]
["Интерферон альфа *","Интерферон альфа *","2","Вэллферон","Кол-во упаковок",{"$f":"SUM(G12:V12)","v":0}]
["Интерферон альфа *","Интерферон альфа *","2","Вэллферон","Форма выпуска",null,"","","","","","","","","",null,"",null,null,null,null,""]
["Интерферон альфа *","Интерферон альфа *","3","Интерферон альфа-2b человеческий рекомбинантный","Минимальная цена",346,null,null,null,null,null,null,null,null,346]
["Интерферон альфа *","Интерферон альфа *","3","Интерферон альфа-2b человеческий рекомбинантный","Максимальная цена",346,null,null,null,null,null,null,null,null,346]
["Интерферон альфа *","Интерферон альфа *","3","Интерферон альфа-2b человеческий рекомбинантный","Кол-во упаковок",{"$f":"SUM(G16:V16)","v":2},null,null,null,null,null,null,null,null,2]
["Интерферон альфа *","Интерферон альфа *","3","Интерферон альфа-2b человеческий рекомбинантный","Форма выпуска"," свечи","","","","","","","",null,"свечи",null,"",null,null,null,null,""]
["Интерферон альфа *","Интерферон альфа *","4","Интерферон лейкоцитарный человеческий жидкий","Минимальная цена"]
["Интерферон альфа *","Интерферон альфа *","4","Интерферон лейкоцитарный человеческий жидкий","Максимальная цена"]
["Интерферон альфа *","Интерферон альфа *","4","Интерферон лейкоцитарный человеческий жидкий","Кол-во упаковок",{"$f":"SUM(G20:V20)","v":0}]
["Интерферон альфа *","Интерферон альфа *","4","Интерферон лейкоцитарный человеческий жидкий","Форма выпуска",null,"","","","","",null,"","","",null,"",null,null,null,null,""]
["Интерферон альфа *","Интерферон альфа *","5","Интерферон лейкоцитарный человеческий сухой","Минимальная цена"]
["Интерферон альфа *","Интерферон альфа *","5","Интерферон лейкоцитарный человеческий сухой","Максимальная цена"]
["Интерферон альфа *","Интерферон альфа *","5","Интерферон лейкоцитарный человеческий сухой","Кол-во упаковок",{"$f":"SUM(G24:V24)","v":0}]
["Интерферон альфа *","Интерферон альфа *","5","Интерферон лейкоцитарный человеческий сухой","Форма выпуска",null,"","","","","","","","","",null,"",null,null,null,null,""]
["Интерферон альфа *","Интерферон альфа *","6","Интерферон человеческий лейкоцитарный","Минимальная цена",399,null,null,null,null,null,null,null,null,null,null,null,null,null,null,null,399]
["Интерферон альфа *","Интерферон альфа *","6","Интерферон человеческий лейкоцитарный","Максимальная цена",721,null,null,null,null,null,null,null,null,null,null,null,null,null,null,null,721]
["Интерферон альфа *","Интерферон альфа *","6","Интерферон человеческий лейкоцитарный","Кол-во упаковок",{"$f":"SUM(G28:V28)","v":10},null,null,null,null,null,null,null,null,null,null,null,null,null,null,null,10]
["Интерферон альфа *","Интерферон альфа *","6","Интерферон человеческий лейкоцитарный","Форма выпуска","таблетки","","","","","","","","","",null,"",null,null,null,null,"таблетки"]
["Интерферон альфа *","Интерферон альфа *","7","Интерферон человеческий лейкоцитарный в свечах","Минимальная цена"]
["Интерферон альфа *","Интерферон альфа *","7","Интерферон человеческий лейкоцитарный в свечах","Максимальная цена"]
["Интерферон альфа *","Интерферон альфа *","7","Интерферон человеческий лейкоцитарный в свечах","Кол-во упаковок",{"$f":"SUM(G32:V32)","v":0}]
["Интерферон альфа *","Интерферон альфа *","7","Интерферон человеческий лейкоцитарный в свечах","Форма выпуска",null,"","","","","","","","","",null,"",null,null,null,null,""]
["Интерферон альфа *","Интерферон альфа *","8","Интерферон человеческий лейкоцитарный концентрированный жидкий","Минимальная цена"]
["Интерферон альфа *","Интерферон альфа *","8","Интерферон человеческий лейкоцитарный концентрированный жидкий","Максимальная цена"]
["Интерферон альфа *","Интерферон альфа *","8","Интерферон человеческий лейкоцитарный концентрированный жидкий","Кол-во упаковок",{"$f":"SUM(G36:V36)","v":0}]
["Интерферон альфа *","Интерферон альфа *","8","Интерферон человеческий лейкоцитарный концентрированный жидкий","Форма выпуска",null,"","","","","","","","","",null,"",null,null,null,null,""]
["Интерферон альфа *","Интерферон альфа *","9","Интерферон человеческий рекомбинантный альфа-2 (полуфабрикат)","Минимальная цена"]
["Интерферон альфа *","Интерферон альфа *","9","Интерферон человеческий рекомбинантный альфа-2 (полуфабрикат)","Максимальная цена"]
["Интерферон альфа *","Интерферон альфа *","9","Интерферон человеческий рекомбинантный альфа-2 (полуфабрикат)","Кол-во упаковок",{"$f":"SUM(G40:V40)","v":0}]
["Интерферон альфа *","Интерферон альфа *","9","Интерферон человеческий рекомбинантный альфа-2 (полуфабрикат)","Форма выпуска",null,"","","","","","","","","",null,"",null,null,null,null,""]
["Интерферон альфа *","Интерферон альфа *","10","Интерферона альфа-2 рекомбинантного мазь на гидрогелевой основе","Минимальная цена",86,null,null,null,null,null,null,null,null,86]
["Интерферон альфа *","Интерферон альфа *","10","Интерферона альфа-2 рекомбинантного мазь на гидрогелевой основе","Максимальная цена",86,null,null,null,null,null,null,null,null,86]
["Интерферон альфа *","Интерферон альфа *","10","Интерферона альфа-2 рекомбинантного мазь на гидрогелевой основе","Кол-во упаковок",{"$f":"SUM(G44:V44)","v":3},null,null,null,null,null,null,null,null,3]
["Интерферон альфа *","Интерферон альфа *","10","Интерферона альфа-2 рекомбинантного мазь на гидрогелевой основе","Форма выпуска","мазь","","","","","","","","","мазь",null,"",null,null,null,null,""]
["Интерферон альфа *","Интерферон альфа *","11","Инферон","Минимальная цена"]
["Интерферон альфа *","Интерферон альфа *","11","Инферон","Максимальная цена"]
["Интерферон альфа *","Интерферон альфа *","11","Инферон","Кол-во упаковок",{"$f":"SUM(G48:V48)","v":0}]
["Интерферон альфа *","Интерферон альфа *","11","Инферон","Форма выпуска",null,"","","","","","","","","",null,"",null,null,null,null,""]
["Интерферон альфа *","Интерферон альфа *","12","Локферон","Минимальная цена"]
["Интерферон альфа *","Интерферон альфа *","12","Локферон","Максимальная цена"]
["Интерферон альфа *","Интерферон альфа *","12","Локферон","Кол-во упаковок",{"$f":"SUM(G52:V52)","v":0}]
["Интерферон альфа *","Интерферон альфа *","12","Локферон","Форма выпуска",null,"","","","","","","","","",null,"",null,null,null,null,""]
[2,"Интерферон альфа-2b","13","Альтевир","Минимальная цена"]
[null,"Интерферон альфа-2b","13","Альтевир","Максимальная цена"]
[null,"Интерферон альфа-2b","13","Альтевир","Кол-во упаковок",{"$f":"SUM(G56:V56)","v":0}]
[null,"Интерферон альфа-2b","13","Альтевир","Форма выпуска",null,"","","","","","","","","",null,"",null,null,null,null,""]
[null,"Интерферон альфа-2b","14","Альфарона","Минимальная цена"]
[null,"Интерферон альфа-2b","14","Альфарона","Максимальная цена"]
[null,"Интерферон альфа-2b","14","Альфарона","Кол-во упаковок",{"$f":"SUM(G60:V60)","v":0}]
[null,"Интерферон альфа-2b","14","Альфарона","Форма выпуска",null,"","","","","","","","","",null,"",null,null,null,null,""]
[null,"Интерферон альфа-2b","15","Бинноферон альфа","Минимальная цена"]
[null,"Интерферон альфа-2b","15","Бинноферон альфа","Максимальная цена"]
[null,"Интерферон альфа-2b","15","Бинноферон альфа","Кол-во упаковок",{"$f":"SUM(G64:V64)","v":0}]
[null,"Интерферон альфа-2b","15","Бинноферон альфа","Форма выпуска",null,"","","","","","","","","",null,null,null,null,null,null,""]
[null,"Интерферон альфа-2b","16","Виферон","Минимальная цена",242,335,335,252,325,340,350,null,372,314,null,242,null,null,null,null,394]
[null,"Интерферон альфа-2b","16","Виферон","Максимальная цена",1431,335,771,817,325,340,538,null,521,314,null,1431,null,null,null,null,1246]
[null,"Интерферон альфа-2b","16","Виферон","Кол-во упаковок",{"$f":"SUM(G68:V68)","v":70},2,5,14,2,1,11,null,8,4,null,18,null,null,null,null,5]
[null,"Интерферон альфа-2b","16","Виферон","Форма выпуска","суппозитории, мазь, гель, свечи","суппозитории","суппозитории","суппозитории, мазь","суппозитории","суппозитории","гель, свечи","","свечи","суппозитории",null,"гель, мазь, свечи",null,null,null,null,"свечи"]
[null,"Интерферон альфа-2b","17","Гиаферон","Минимальная цена"]
[null,"Интерферон альфа-2b","17","Гиаферон","Максимальная цена"]
[null,"Интерферон альфа-2b","17","Гиаферон","Кол-во упаковок",{"$f":"SUM(G72:V72)","v":0}]
[null,"Интерферон альфа-2b","17","Гиаферон","Форма выпуска",null,"","","",null,"","","",null,""]
[null,"Интерферон альфа-2b","18","Гриппферон","Минимальная цена",278,330,394,335,315,345,340,null,349,278,null,357]
[null,"Интерферон альфа-2b","18","Гриппферон","Максимальная цена",394,330,394,335,315,350,345,null,351,278,null,362]
[null,"Интерферон альфа-2b","18","Гриппферон","Кол-во упаковок",{"$f":"SUM(G76:V76)","v":113},1,14,22,10,29,14,null,5,5,null,13]
[null,"Интерферон альфа-2b","18","Гриппферон","Форма выпуска","капли назальные, спрей назальный","капли назальные","капли назальные","капли назальные","капли назальные","капли назальные","капли, спрей","","капли","капли",null,"капли"]
[null,"Интерферон альфа-2b","19","Интерфераль","Минимальная цена"]
[null,"Интерферон альфа-2b","19","Интерфераль","Максимальная цена"]
[null,"Интерферон альфа-2b","19","Интерфераль","Кол-во упаковок",{"$f":"SUM(G80:V80)","v":0}]
[null,"Интерферон альфа-2b","19","Интерфераль","Форма выпуска",null,"","","","","",null,"","","",null,""]
[null,"Интерферон альфа-2b","20","Интрон А","Минимальная цена"]
[null,"Интерферон альфа-2b","20","Интрон А","Максимальная цена"]
[null,"Интерферон альфа-2b","20","Интрон А","Кол-во упаковок",{"$f":"SUM(G84:V84)","v":0}]
[null,"Интерферон альфа-2b","20","Интрон А","Форма выпуска",null,"","","",null,"","","","","",null,""]
[null,"Интерферон альфа-2b","21","Инфагель","Минимальная цена",96,null,148,null,null,null,null,null,154,96]
[null,"Интерферон альфа-2b","21","Инфагель","Максимальная цена",154,null,148,null,null,null,null,null,154,96]
[null,"Интерферон альфа-2b","21","Инфагель","Кол-во упаковок",{"$f":"SUM(G88:V88)","v":6},null,1,null,null,null,null,null,1,4]
[null,"Интерферон альфа-2b","21","Инфагель","Форма выпуска","мазь",null,"мазь",null,null,null,"","","мазь","мазь",null,""]
[null,"Интерферон альфа-2b","22","Реаферон-ЕС","Минимальная цена"]
[null,"Интерферон альфа-2b","22","Реаферон-ЕС","Максимальная цена"]
[null,"Интерферон альфа-2b","22","Реаферон-ЕС","Кол-во упаковок",{"$f":"SUM(G92:V92)","v":0}]
[null,"Интерферон альфа-2b","22","Реаферон-ЕС","Форма выпуска",null,"","","","","","","","","",null,""]
[null,"Интерферон альфа-2b","23","Реаферон-ЕС-Липинт","Минимальная цена"]
[null,"Интерферон альфа-2b","23","Реаферон-ЕС-Липинт","Максимальная цена"]
[null,"Интерферон альфа-2b","23","Реаферон-ЕС-Липинт","Кол-во упаковок",{"$f":"SUM(G96:V96)","v":0}]
[null,"Интерферон альфа-2b","23","Реаферон-ЕС-Липинт","Форма выпуска",null,"","","","","","","","","",null,"",null,null,null,null,""]
[null,"Интерферон альфа-2b","24","Реаферон-ЛИПИНТ","Минимальная цена"]
[null,"Интерферон альфа-2b","24","Реаферон-ЛИПИНТ","Максимальная цена"]
[null,"Интерферон альфа-2b","24","Реаферон-ЛИПИНТ","Кол-во упаковок",{"$f":"SUM(G100:V100)","v":0}]
[null,"Интерферон альфа-2b","24","Реаферон-ЛИПИНТ","Форма выпуска",null,"","","","","","","","","",null,"",null,null,null,null,""]
[3,"Интерферон альфа-2b человеческий рекомбинант-ный","25","Интерфераль","Минимальная цена"]
["Интерферон альфа-2b человеческий рекомбинантный","Интерферон альфа-2b человеческий рекомбинантный","25","Интерфераль","Максимальная цена"]
["Интерферон альфа-2b человеческий рекомбинантный","Интерферон альфа-2b человеческий рекомбинантный","25","Интерфераль","Кол-во упаковок",{"$f":"SUM(G104:V104)","v":0}]
["Интерферон альфа-2b человеческий рекомбинантный","Интерферон альфа-2b человеческий рекомбинантный","25","Интерфераль","Форма выпуска",null,"","","","","","","","","",null,"",null,null,null,null,""]
["Интерферон альфа-2b человеческий рекомбинантный","Интерферон альфа-2b человеческий рекомбинантный","26","Интерферон альфа-2 человеческий рекомбинантный","Минимальная цена"]
["Интерферон альфа-2b человеческий рекомбинантный","Интерферон альфа-2b человеческий рекомбинантный","26","Интерферон альфа-2 человеческий рекомбинантный","Максимальная цена"]
["Интерферон альфа-2b человеческий рекомбинантный","Интерферон альфа-2b человеческий рекомбинантный","26","Интерферон альфа-2 человеческий рекомбинантный","Кол-во упаковок",{"$f":"SUM(G108:V108)","v":0}]
["Интерферон альфа-2b человеческий рекомбинантный","Интерферон альфа-2b человеческий рекомбинантный","26","Интерферон альфа-2 человеческий рекомбинантный","Форма выпуска",null,"","","","","","","","","",null,"",null,null,null,null,""]
["Интерферон альфа-2b человеческий рекомбинантный","Интерферон альфа-2b человеческий рекомбинантный","27","Интерферон альфа-2 человеческий рекомбинантный (ИФН альфа-2 чр)","Минимальная цена"]
["Интерферон альфа-2b человеческий рекомбинантный","Интерферон альфа-2b человеческий рекомбинантный","27","Интерферон альфа-2 человеческий рекомбинантный (ИФН альфа-2 чр)","Максимальная цена"]
["Интерферон альфа-2b человеческий рекомбинантный","Интерферон альфа-2b человеческий рекомбинантный","27","Интерферон альфа-2 человеческий рекомбинантный (ИФН альфа-2 чр)","Кол-во упаковок",{"$f":"SUM(G112:V112)","v":0}]
["Интерферон альфа-2b человеческий рекомбинантный","Интерферон альфа-2b человеческий рекомбинантный","27","Интерферон альфа-2 человеческий рекомбинантный (ИФН альфа-2 чр)","Форма выпуска",null,"","","","","","","","","",null,"",null,null,null,null,""]
["Интерферон альфа-2b человеческий рекомбинантный","Интерферон альфа-2b человеческий рекомбинантный","28","Интерферон альфа-2b человеческий рекомбинантный","Минимальная цена"]
["Интерферон альфа-2b человеческий рекомбинантный","Интерферон альфа-2b человеческий рекомбинантный","28","Интерферон альфа-2b человеческий рекомбинантный","Максимальная цена"]
["Интерферон альфа-2b человеческий рекомбинантный","Интерферон альфа-2b человеческий рекомбинантный","28","Интерферон альфа-2b человеческий рекомбинантный","Кол-во упаковок",{"$f":"SUM(G116:V116)","v":0}]
["Интерферон альфа-2b человеческий рекомбинантный","Интерферон альфа-2b человеческий рекомбинантный","28","Интерферон альфа-2b человеческий рекомбинантный","Форма выпуска",null,"","","","","","","","","",null,"",null,null,null,null,""]
["Интерферон альфа-2b человеческий рекомбинантный","Интерферон альфа-2b человеческий рекомбинантный","29","Интерферон альфа-2b человеческий рекомбинантный (рчИФН-а2b)","Минимальная цена"]
["Интерферон альфа-2b человеческий рекомбинантный","Интерферон альфа-2b человеческий рекомбинантный","29","Интерферон альфа-2b человеческий рекомбинантный (рчИФН-а2b)","Максимальная цена"]
["Интерферон альфа-2b человеческий рекомбинантный","Интерферон альфа-2b человеческий рекомбинантный","29","Интерферон альфа-2b человеческий рекомбинантный (рчИФН-а2b)","Кол-во упаковок",{"$f":"SUM(G120:V120)","v":0}]
["Интерферон альфа-2b человеческий рекомбинантный","Интерферон альфа-2b человеческий рекомбинантный","29","Интерферон альфа-2b человеческий рекомбинантный (рчИФН-а2b)","Форма выпуска",null,"","","","","","","","","",null,"",null,null,null,null,""]
["Интерферон альфа-2b человеческий рекомбинантный","Интерферон альфа-2b человеческий рекомбинантный","30","Интерферон альфа-2b человеческий рекомбинантный безметиониновый","Минимальная цена"]
["Интерферон альфа-2b человеческий рекомбинантный","Интерферон альфа-2b человеческий рекомбинантный","30","Интерферон альфа-2b человеческий рекомбинантный безметиониновый","Максимальная цена"]
["Интерферон альфа-2b человеческий рекомбинантный","Интерферон альфа-2b человеческий рекомбинантный","30","Интерферон альфа-2b человеческий рекомбинантный безметиониновый","Кол-во упаковок",{"$f":"SUM(G124:V124)","v":0}]
["Интерферон альфа-2b человеческий рекомбинантный","Интерферон альфа-2b человеческий рекомбинантный","30","Интерферон альфа-2b человеческий рекомбинантный безметиониновый","Форма выпуска",null,"","","","","","","","","",null,"",null,null,null,null,""]
["Интерферон альфа-2b человеческий рекомбинантный","Интерферон альфа-2b человеческий рекомбинантный","31","Лайфферон","Минимальная цена"]
["Интерферон альфа-2b человеческий рекомбинантный","Интерферон альфа-2b человеческий рекомбинантный","31","Лайфферон","Максимальная цена"]
["Интерферон альфа-2b человеческий рекомбинантный","Интерферон альфа-2b человеческий рекомбинантный","31","Лайфферон","Кол-во упаковок",{"$f":"SUM(G128:V128)","v":0}]
["Интерферон альфа-2b человеческий рекомбинантный","Интерферон альфа-2b человеческий рекомбинантный","31","Лайфферон","Форма выпуска",null,"","","","","","","","","",null,"",null,null,null,null,""]
["Интерферон альфа-2b человеческий рекомбинантный","Интерферон альфа-2b человеческий рекомбинантный","32","Реальдирон","Минимальная цена"]
["Интерферон альфа-2b человеческий рекомбинантный","Интерферон альфа-2b человеческий рекомбинантный","32","Реальдирон","Максимальная цена"]
["Интерферон альфа-2b человеческий рекомбинантный","Интерферон альфа-2b человеческий рекомбинантный","32","Реальдирон","Кол-во упаковок",{"$f":"SUM(G132:V132)","v":0}]
["Интерферон альфа-2b человеческий рекомбинантный","Интерферон альфа-2b человеческий рекомбинантный","32","Реальдирон","Форма выпуска",null,"","",null,"","","","","","",null,null,null,null,null,null,""]
[4,"Интерферон гамма человеческий рекомбинантный","33","Ингарон","Минимальная цена",381,null,null,null,null,null,null,null,null,null,null,381]
["Интерферон гамма человеческий рекомбинантный","Интерферон гамма человеческий рекомбинантный","33","Ингарон","Максимальная цена",381,null,null,null,null,null,null,null,null,null,null,381]
["Интерферон гамма человеческий рекомбинантный","Интерферон гамма человеческий рекомбинантный","33","Ингарон","Кол-во упаковок",{"$f":"SUM(G136:V136)","v":2},null,null,null,null,null,null,null,null,null,null,2]
["Интерферон гамма человеческий рекомбинантный","Интерферон гамма человеческий рекомбинантный","33","Ингарон","Форма выпуска","лиофизилат для раствора",null,null,null,null,null,"","",null,"",null,"порошок",null,null,null,null,""]
["Интерферон гамма человеческий рекомбинантный","Интерферон гамма человеческий рекомбинантный","34","Интерферон гамма человеческий рекомбинантный, интраназальная форма","Минимальная цена"]
["Интерферон гамма человеческий рекомбинантный","Интерферон гамма человеческий рекомбинантный","34","Интерферон гамма человеческий рекомбинантный, интраназальная форма","Максимальная цена"]
["Интерферон гамма человеческий рекомбинантный","Интерферон гамма человеческий рекомбинантный","34","Интерферон гамма человеческий рекомбинантный, интраназальная форма","Кол-во упаковок",{"$f":"SUM(G140:V140)","v":0}]
["Интерферон гамма человеческий рекомбинантный","Интерферон гамма человеческий рекомбинантный","34","Интерферон гамма человеческий рекомбинантный, интраназальная форма","Форма выпуска",null,"","","","","","","","","",null,"",null,null,null,null,""]
[5,"Кагоцел","35","Кагоцел","Минимальная цена",260,260,275,260,500,280,275,null,316,290,null,335,null,null,null,null,555]
["Кагоцел","Кагоцел","35","Кагоцел","Максимальная цена",889,520,830,540,500,625,535,null,593,290,null,889,null,null,null,null,555]
["Кагоцел","Кагоцел","35","Кагоцел","Кол-во упаковок",{"$f":"SUM(G144:V144)","v":112},5,7,31,8,6,18,null,2,6,null,15,null,null,null,null,14]
["Кагоцел","Кагоцел","35","Кагоцел","Форма выпуска","таблетки","таблетки","таблетки","таблетки","таблетки","таблетки","таблетки","","таблетки","таблетки",null,"таблетки",null,null,null,null,"таблетки"]
[6,"Осельтамивир","36","Гриптера","Минимальная цена"]
["Осельтамивир","Осельтамивир","36","Гриптера","Максимальная цена"]
["Осельтамивир","Осельтамивир","36","Гриптера","Кол-во упаковок",{"$f":"SUM(G148:V148)","v":0}]
["Осельтамивир","Осельтамивир","36","Гриптера","Форма выпуска",null,"","","","","","","",null,"",null,"",null,null,null,null,""]
["Осельтамивир","Осельтамивир","37","Инфлюцеин","Минимальная цена",577,null,null,null,null,null,577,null,null,611]
["Осельтамивир","Осельтамивир","37","Инфлюцеин","Максимальная цена",611,null,null,null,null,null,577,null,null,611]
["Осельтамивир","Осельтамивир","37","Инфлюцеин","Кол-во упаковок",{"$f":"SUM(G152:V152)","v":5},null,null,null,null,null,3,null,null,2]
["Осельтамивир","Осельтамивир","37","Инфлюцеин","Форма выпуска","капсулы, таблетки","",null,null,"","","капсулы","","","таблетки",null,null,null,null,null,null,""]
["Осельтамивир","Осельтамивир","38","Номидес","Минимальная цена",420,905,null,875,null,955,null,null,null,null,null,420,null,null,null,null,976]
["Осельтамивир","Осельтамивир","38","Номидес","Максимальная цена",976,905,null,890,null,955,null,null,null,null,null,972,null,null,null,null,976]
["Осельтамивир","Осельтамивир","38","Номидес","Кол-во упаковок",{"$f":"SUM(G156:V156)","v":41},2,null,20,null,1,null,null,null,null,null,13,null,null,null,null,5]
["Осельтамивир","Осельтамивир","38","Номидес","Форма выпуска","капсулы","капсулы","","капсулы","","капсулы",null,"","","",null,"капсулы",null,null,null,null,"капсулы"]
["Осельтамивир","Осельтамивир","39","Осельтамивир","Минимальная цена",1189,null,null,null,null,null,null,null,null,null,null,null,null,null,null,null,1189]
["Осельтамивир","Осельтамивир","39","Осельтамивир","Максимальная цена",1189,null,null,null,null,null,null,null,null,null,null,null,null,null,null,null,1189]
["Осельтамивир","Осельтамивир","39","Осельтамивир","Кол-во упаковок",{"$f":"SUM(G160:V160)","v":2},null,null,null,null,null,null,null,null,null,null,null,null,null,null,null,2]
["Осельтамивир","Осельтамивир","39","Осельтамивир","Форма выпуска","капсулы","","",null,"","","","","",null,null,null,null,null,null,null,"капсулы"]
["Осельтамивир","Осельтамивир","40","ОСЕЛЬТАМИВИР","Минимальная цена",662,null,null,null,null,null,1045,null,null,662]
["Осельтамивир","Осельтамивир","40","ОСЕЛЬТАМИВИР","Максимальная цена",1063,null,null,null,null,null,1063,null,null,662]
["Осельтамивир","Осельтамивир","40","ОСЕЛЬТАМИВИР","Кол-во упаковок",{"$f":"SUM(G164:V164)","v":10},null,null,null,null,null,6,null,null,4]
["Осельтамивир","Осельтамивир","40","ОСЕЛЬТАМИВИР","Форма выпуска","капсулы","","",null,null,null,"капсулы","","","капсулы",null,null,null,null,null,null,""]
["Осельтамивир","Осельтамивир","41","АВЕКСИМА","Минимальная цена",816,null,null,null,null,null,null,null,816]
["Осельтамивир","Осельтамивир","41","АВЕКСИМА","Максимальная цена",816,null,null,null,null,null,null,null,816]
["Осельтамивир","Осельтамивир","41","АВЕКСИМА","Кол-во упаковок",{"$f":"SUM(G168:V168)","v":3},null,null,null,null,null,null,null,3]
["Осельтамивир","Осельтамивир","41","АВЕКСИМА","Форма выпуска","таблетки",null,null,"",null,null,null,"","таблетки","",null,"",null,null,null,null,""]
["Осельтамивир","Осельтамивир","42","Осельтамивир Канон","Минимальная цена"]
["Осельтамивир","Осельтамивир","42","Осельтамивир Канон","Максимальная цена"]
["Осельтамивир","Осельтамивир","42","Осельтамивир Канон","Кол-во упаковок",{"$f":"SUM(G172:V172)","v":0}]
["Осельтамивир","Осельтамивир","42","Осельтамивир Канон","Форма выпуска",null,null,"",null,"",null,"","","","",null,"",null,null,null,null,""]
["Осельтамивир","Осельтамивир","43","Осельтамивир-Акрихин","Минимальная цена",983,983,null,null,null,null,null,null,1086]
["Осельтамивир","Осельтамивир","43","Осельтамивир-Акрихин","Максимальная цена",1086,1045,null,null,null,null,null,null,1086]
["Осельтамивир","Осельтамивир","43","Осельтамивир-Акрихин","Кол-во упаковок",{"$f":"SUM(G176:V176)","v":3},2,null,null,null,null,null,null,1]
["Осельтамивир","Осельтамивир","43","Осельтамивир-Акрихин","Форма выпуска","капсулы, таблетки","капсулы",null,null,null,null,null,"","таблетки","",null,""]
["Осельтамивир","Осельтамивир","44","Осельтамивир-натив","Минимальная цена"]
["Осельтамивир","Осельтамивир","44","Осельтамивир-натив","Максимальная цена"]
["Осельтамивир","Осельтамивир","44","Осельтамивир-натив","Кол-во упаковок",{"$f":"SUM(G180:V180)","v":0}]
["Осельтамивир","Осельтамивир","44","Осельтамивир-натив","Форма выпуска",null,"","","","","","","","","",null,"",null,null,null,null,""]
["Осельтамивир","Осельтамивир","45","Осельтамивира фосфат","Минимальная цена"]
["Осельтамивир","Осельтамивир","45","Осельтамивира фосфат","Максимальная цена"]
["Осельтамивир","Осельтамивир","45","Осельтамивира фосфат","Кол-во упаковок",{"$f":"SUM(G184:V184)","v":0}]
["Осельтамивир","Осельтамивир","45","Осельтамивира фосфат","Форма выпуска",null,"","","","","","","","","",null,"",null,null,null,null,""]
["Осельтамивир","Осельтамивир","46","РИНИВИРА","Минимальная цена"]
["Осельтамивир","Осельтамивир","46","РИНИВИРА","Максимальная цена"]
["Осельтамивир","Осельтамивир","46","РИНИВИРА","Кол-во упаковок",{"$f":"SUM(G188:V188)","v":0}]
["Осельтамивир","Осельтамивир","46","РИНИВИРА","Форма выпуска",null,"","","","","","","","","",null,"",null,null,null,null,""]
["Осельтамивир","Осельтамивир","47","Сельтавир","Минимальная цена",930,null,null,null,null,null,null,null,930]
["Осельтамивир","Осельтамивир","47","Сельтавир","Максимальная цена",930,null,null,null,null,null,null,null,930]
["Осельтамивир","Осельтамивир","47","Сельтавир","Кол-во упаковок",1,null,null,null,null,null,null,null,1]
["Осельтамивир","Осельтамивир","47","Сельтавир","Форма выпуска","таблетки","","","","","","","","таблетки","",null,"",null,null,null,null,""]
["Осельтамивир","Осельтамивир","48","Тамифлю","Минимальная цена",1100,null,null,null,null,1100,null,null,null,null,null,null,null,null,null,null,1125]
["Осельтамивир","Осельтамивир","48","Тамифлю","Максимальная цена",1125,null,null,null,null,1100,null,null,null,null,null,null,null,null,null,null,1125]
["Осельтамивир","Осельтамивир","48","Тамифлю","Кол-во упаковок",{"$f":"SUM(G196:V196)","v":4},null,null,null,null,2,null,null,null,null,null,null,null,null,null,null,2]
["Осельтамивир","Осельтамивир","48","Тамифлю","Форма выпуска","капсулы","",null,null,"","капсулы","","","","",null,null,null,null,null,null,"капсулы"]
["Осельтамивир","Осельтамивир","49","ФЛУСТОП","Минимальная цена"]
["Осельтамивир","Осельтамивир","49","ФЛУСТОП","Максимальная цена"]
["Осельтамивир","Осельтамивир","49","ФЛУСТОП","Кол-во упаковок",{"$f":"SUM(G200:V200)","v":0}]
["Осельтамивир","Осельтамивир","49","ФЛУСТОП","Форма выпуска",null,"","","","","","","","","",null,"",null,null,null,null,""]
["Осельтамивир","Осельтамивир","50","Флутавир-Эйч","Минимальная цена"]
["Осельтамивир","Осельтамивир","50","Флутавир-Эйч","Максимальная цена"]
["Осельтамивир","Осельтамивир","50","Флутавир-Эйч","Кол-во упаковок",{"$f":"SUM(G204:V204)","v":0}]
["Осельтамивир","Осельтамивир","50","Флутавир-Эйч","Форма выпуска",null,"","","","","",null,"","","",null,null,null,null,null,null,""]
[7,"Тилорон","51","Амиксин","Минимальная цена",680,806,782,null,null,null,865,null,861,680,null,818,null,null,null,null,848]
["Тилорон","Тилорон","51","Амиксин","Максимальная цена",1389,806,1345,null,null,null,865,null,861,680,null,1389,null,null,null,null,848]
["Тилорон","Тилорон","51","Амиксин","Кол-во упаковок",{"$f":"SUM(G208:V208)","v":36},1,4,null,null,null,2,null,1,2,null,19,null,null,null,null,7]
["Тилорон","Тилорон","51","Амиксин","Форма выпуска","таблетки","таблетки","таблетки","",null,null,"таблетки",null,"таблетки","таблетки",null,"таблетки",null,null,null,null,"таблетки"]
["Тилорон","Тилорон","52","Лавомакс","Минимальная цена",346,null,null,null,null,null,346]
["Тилорон","Тилорон","52","Лавомакс","Максимальная цена",756,null,null,null,null,null,756]
["Тилорон","Тилорон","52","Лавомакс","Кол-во упаковок",{"$f":"SUM(G212:V212)","v":9},null,null,null,null,null,9]
["Тилорон","Тилорон","52","Лавомакс","Форма выпуска","таблетки",null,null,null,"","","таблетки",null,null,"",null,null,null,null,null,null,""]
["Тилорон","Тилорон","53","Лавомакс НЕО","Минимальная цена",739,null,null,null,null,null,null,null,739]
["Тилорон","Тилорон","53","Лавомакс НЕО","Максимальная цена",739,null,null,null,null,null,null,null,739]
["Тилорон","Тилорон","53","Лавомакс НЕО","Кол-во упаковок",{"$f":"SUM(G216:V216)","v":1},null,null,null,null,null,null,null,1]
["Тилорон","Тилорон","53","Лавомакс НЕО","Форма выпуска","таблетки","","","","","",null,null,"таблетки","",null,"",null,null,null,null,""]
["Тилорон","Тилорон","54","ОРВИ-ксин","Минимальная цена",null,null,null,null,null,null,""]
["Тилорон","Тилорон","54","ОРВИ-ксин","Максимальная цена"]
["Тилорон","Тилорон","54","ОРВИ-ксин","Кол-во упаковок",{"$f":"SUM(G220:V220)","v":0}]
["Тилорон","Тилорон","54","ОРВИ-ксин","Форма выпуска",null,null,"","","","","",null,"","",null,""]
["Тилорон","Тилорон","55","ОРВИС Иммуно","Минимальная цена",628,null,671,null,671,null,628]
["Тилорон","Тилорон","55","ОРВИС Иммуно","Максимальная цена",1037,null,1037,null,1013,null,1013]
["Тилорон","Тилорон","55","ОРВИС Иммуно","Кол-во упаковок",{"$f":"SUM(G224:V224)","v":32},null,11,null,9,null,12]
["Тилорон","Тилорон","55","ОРВИС Иммуно","Форма выпуска","таблетки",null,"таблетки",null,"таблетки",null,"таблетки",null,null,"",null,"",null,null,null,null,""]
["Тилорон","Тилорон","56","Тилаксин","Минимальная цена"]
["Тилорон","Тилорон","56","Тилаксин","Максимальная цена"]
["Тилорон","Тилорон","56","Тилаксин","Кол-во упаковок",{"$f":"SUM(G228:V228)","v":0}]
["Тилорон","Тилорон","56","Тилаксин","Форма выпуска",null,"",null,null,"",null,"",null,"","",null,"",null,null,null,null,""]
["Тилорон","Тилорон","57","Тилорам","Минимальная цена",732,null,795,732,null,795,1142,null,732]
["Тилорон","Тилорон","57","Тилорам","Максимальная цена",1142,null,812,1116,null,795,1142,null,732]
["Тилорон","Тилорон","57","Тилорам","Кол-во упаковок",{"$f":"SUM(G232:V232)","v":17},null,2,3,null,3,8,null,1]
["Тилорон","Тилорон","57","Тилорам","Форма выпуска","таблетки","","таблетки","таблетки",null,"таблетки","таблетки",null,"таблетки","",null,"",null,null,null,null,""]
["Тилорон","Тилорон","58","Тилорон","Минимальная цена"]
["Тилорон","Тилорон","58","Тилорон","Максимальная цена"]
["Тилорон","Тилорон","58","Тилорон","Кол-во упаковок",{"$f":"SUM(G236:V236)","v":0}]
["Тилорон","Тилорон","58","Тилорон","Форма выпуска",null,"","",null,"","",null,null,null,"",null,"",null,null,null,null,""]
["Тилорон","Тилорон","59","Тилорон - ВЕРТЕКС","Минимальная цена"]
["Тилорон","Тилорон","59","Тилорон - ВЕРТЕКС","Максимальная цена"]
["Тилорон","Тилорон","59","Тилорон - ВЕРТЕКС","Кол-во упаковок",{"$f":"SUM(G240:V240)","v":0}]
["Тилорон","Тилорон","59","Тилорон - ВЕРТЕКС","Форма выпуска",null,"",null,"","","","",null,"","",null,"",null,null,null,null,""]
["Тилорон","Тилорон","60","Тилорон-СЗ","Минимальная цена",507,507,null,null,null,null,null,null,585]
["Тилорон","Тилорон","60","Тилорон-СЗ","Максимальная цена",585,507,null,null,null,null,null,null,585]
["Тилорон","Тилорон","60","Тилорон-СЗ","Кол-во упаковок",{"$f":"SUM(G244:V244)","v":5},4,null,null,null,null,null,null,1]
["Тилорон","Тилорон","60","Тилорон-СЗ","Форма выпуска","таблетки","таблетки",null,null,null,null,null,null,"таблетки","",null,"",null,null,null,null,""]
["Тилорон","Тилорон","61","ТИЛОРОН-ФПО","Минимальная цена"]
["Тилорон","Тилорон","61","ТИЛОРОН-ФПО","Максимальная цена"]
["Тилорон","Тилорон","61","ТИЛОРОН-ФПО","Кол-во упаковок",{"$f":"SUM(G248:V248)","v":0}]
["Тилорон","Тилорон","61","ТИЛОРОН-ФПО","Форма выпуска",null,"","","","","","",null,"","",null,"",null,null,null,null,""]
["Тилорон","Тилорон","62","Тилорона дигидрохлорид","Минимальная цена"]
["Тилорон","Тилорон","62","Тилорона дигидрохлорид","Максимальная цена"]
["Тилорон","Тилорон","62","Тилорона дигидрохлорид","Кол-во упаковок",{"$f":"SUM(G252:V252)","v":0}]
["Тилорон","Тилорон","62","Тилорона дигидрохлорид","Форма выпуска",null,"","","","","","",null,"","",null,"",null,null,null,null,""]
["Тилорон","Тилорон","63","Флогардин","Минимальная цена",646,null,null,null,null,null,null,null,646]
["Тилорон","Тилорон","63","Флогардин","Максимальная цена",646,null,null,null,null,null,null,null,646]
["Тилорон","Тилорон","63","Флогардин","Кол-во упаковок",{"$f":"SUM(G256:V256)","v":1},null,null,null,null,null,null,null,1]
["Тилорон","Тилорон","63","Флогардин","Форма выпуска","таблетки","","","","","","",null,"таблетки","",null,""]
[8,"Умифеновир","64","Арбидол","Минимальная цена",216,390,390,219,275,305,300,null,234,431,null,216,null,null,null,null,227]
["Умифеновир","Умифеновир","64","Арбидол","Максимальная цена",1340,620,669,1190,1230,600,1300,null,716,431,null,1257,null,null,null,null,1340]
["Умифеновир","Умифеновир","64","Арбидол","Кол-во упаковок",{"$f":"SUM(G260:V260)","v":532},88,17,236,22,20,60,null,16,17,null,30,null,null,null,null,26]
["Умифеновир","Умифеновир","64","Арбидол","Форма выпуска","таблетки, капсулы, суспензия","таблетки, капсулы","таблетки, суспензия","таблетки, суспензия","таблетки","таблетки","таблетки, капсулы",null,"таблетки","капсулы",null,"капсулы, таблетки",null,null,null,null,"таблетки, суспензия, капсулы"]
["Умифеновир","Умифеновир","65","Арбидол Максимум","Минимальная цена",487,null,555,565,545,600,615,null,624,487,null,650,null,null,null,null,693]
["Умифеновир","Умифеновир","65","Арбидол Максимум","Максимальная цена",693,null,555,565,610,600,660,null,624,487,null,668,null,null,null,null,693]
["Умифеновир","Умифеновир","65","Арбидол Максимум","Кол-во упаковок",{"$f":"SUM(G264:V264)","v":135},null,1,32,7,16,33,null,8,10,null,20,null,null,null,null,8]
["Умифеновир","Умифеновир","65","Арбидол Максимум","Форма выпуска","капсулы, таблетки",null,"капсулы","капсулы","таблетки","капсулы","капсулы",null,"таблетки","капсулы",null,"капсулы",null,null,null,null,"капсулы"]
["Умифеновир","Умифеновир","66","Арпефлю","Минимальная цена",211,null,null,null,null,null,null,null,305,211]
["Умифеновир","Умифеновир","66","Арпефлю","Максимальная цена",488,null,null,null,null,null,null,null,488,211]
["Умифеновир","Умифеновир","66","Арпефлю","Кол-во упаковок",{"$f":"SUM(G268:V268)","v":26},null,null,null,null,null,null,null,20,6]
["Умифеновир","Умифеновир","66","Арпефлю","Форма выпуска","таблетки","","","","","","",null,"таблетки","таблетки",null,""]
["Умифеновир","Умифеновир","67","Афлюдол","Минимальная цена",221,null,535,419,512,null,null,null,221]
["Умифеновир","Умифеновир","67","Афлюдол","Максимальная цена",535,null,535,422,512,null,null,null,221]
["Умифеновир","Умифеновир","67","Афлюдол","Кол-во упаковок",{"$f":"SUM(G272:V272)","v":34},null,13,16,1,null,null,null,4]
["Умифеновир","Умифеновир","67","Афлюдол","Форма выпуска","таблетки","","таблетки","таблетки","таблетки","",null,null,"таблетки","",null,"",null,null,null,null,""]
["Умифеновир","Умифеновир","68","Меднат","Минимальная цена"]
["Умифеновир","Умифеновир","68","Меднат","Максимальная цена"]
["Умифеновир","Умифеновир","68","Меднат","Кол-во упаковок",{"$f":"SUM(G276:V276)","v":0}]
["Умифеновир","Умифеновир","68","Меднат","Форма выпуска",null,"","","","","","",null,"",null,null,"",null,null,null,null,""]
["Умифеновир","Умифеновир","69","Умифеновир","Минимальная цена",139,null,null,null,null,null,null,null,139,167]
["Умифеновир","Умифеновир","69","Умифеновир","Максимальная цена",167,null,null,null,null,null,null,null,139,167]
["Умифеновир","Умифеновир","69","Умифеновир","Кол-во упаковок",{"$f":"SUM(G280:V280)","v":10},null,null,null,null,null,null,null,5,5]
["Умифеновир","Умифеновир","69","Умифеновир","Форма выпуска","таблетки, капсулы","","","","","","",null,"таблетки","капсулы",null,"",null,null,null,null,""]
[9,"Фавипиравир","70","АВИФАВИР","Минимальная цена"]
["Фавипиравир","Фавипиравир","70","АВИФАВИР","Максимальная цена"]
["Фавипиравир","Фавипиравир","70","АВИФАВИР","Кол-во упаковок",{"$f":"SUM(G284:V284)","v":0}]
["Фавипиравир","Фавипиравир","70","АВИФАВИР","Форма выпуска",null,"","","","","","",null,"","",null,"",null,null,null,null,""]
["Фавипиравир","Фавипиравир","71","АРЕПЛИВИР","Минимальная цена"]
["Фавипиравир","Фавипиравир","71","АРЕПЛИВИР","Максимальная цена"]
["Фавипиравир","Фавипиравир","71","АРЕПЛИВИР","Кол-во упаковок",{"$f":"SUM(G288:V288)","v":0}]
["Фавипиравир","Фавипиравир","71","АРЕПЛИВИР","Форма выпуска",null,"","","","","","",null,"","",null,"",null,null,null,null,""]
["Фавипиравир","Фавипиравир","72","КОРОНАВИР","Минимальная цена"]
["Фавипиравир","Фавипиравир","72","КОРОНАВИР","Максимальная цена"]
["Фавипиравир","Фавипиравир","72","КОРОНАВИР","Кол-во упаковок",{"$f":"SUM(G292:V292)","v":0}]
["Фавипиравир","Фавипиравир","72","КОРОНАВИР","Форма выпуска",null,"","","","","",null,null,"","",null,"",null,null,null,null,""]
[10,"Энисамия йодид","73","Амизон","Минимальная цена"]
["Энисамия йодид","Энисамия йодид","73","Амизон","Максимальная цена"]
["Энисамия йодид","Энисамия йодид","73","Амизон","Кол-во упаковок",{"$f":"SUM(G296:V296)","v":0}]
["Энисамия йодид","Энисамия йодид","73","Амизон","Форма выпуска",null,null,"","","","",null,null,null,"",null,"",null,null,null,null,""]
["Энисамия йодид","Энисамия йодид","74","Нобазит","Минимальная цена",348,null,null,null,null,null,null,null,null,null,null,712,null,null,null,null,348]
["Энисамия йодид","Энисамия йодид","74","Нобазит","Максимальная цена",729,null,null,null,null,null,null,null,null,null,null,729,null,null,null,null,348]
["Энисамия йодид","Энисамия йодид","74","Нобазит","Кол-во упаковок",{"$f":"SUM(G300:V300)","v":7},null,null,null,null,null,null,null,null,null,null,4,null,null,null,null,3]
["Энисамия йодид","Энисамия йодид","74","Нобазит","Форма выпуска","таблетки",null,null,"","","",null,null,null,"",null,"таблетки",null,null,null,null,"таблетки"]
[11,"Занамивир","75","Реленза","Минимальная цена"]
["Занамивир","Занамивир","75","Реленза","Максимальная цена"]
["Занамивир","Занамивир","75","Реленза","Кол-во упаковок",{"$f":"SUM(G304:V304)","v":0}]
["Занамивир","Занамивир","75","Реленза","Форма выпуска",null,null,null,null,"","","",null,"","",null,null,null,null,null,null,""]
[12,"Риамиловир","76","Триазавирин","Минимальная цена",996,null,null,null,null,null,null,null,996,null,null,2107,null,null,null,null,2058]
["Риамиловир","Риамиловир","76","Триазавирин","Максимальная цена",2135,null,null,null,null,null,null,null,996,null,null,2135,null,null,null,null,2058]
["Риамиловир","Риамиловир","76","Триазавирин","Кол-во упаковок",{"$f":"SUM(G308:V308)","v":6},null,null,null,null,null,null,null,1,null,null,4,null,null,null,null,1]
["Риамиловир","Риамиловир","76","Триазавирин","Форма выпуска","таблетки, капсулы","","","","","","",null,"таблетки","",null,"капсулы",null,null,null,null,"капсулы"]
[13,"Гидроксихлорохин","77","Гидроксихлорохин","Минимальная цена"]
["Гидроксихлорохин","Гидроксихлорохин","77","Гидроксихлорохин","Максимальная цена"]
["Гидроксихлорохин","Гидроксихлорохин","77","Гидроксихлорохин","Кол-во упаковок",{"$f":"SUM(G312:V312)","v":0}]
["Гидроксихлорохин","Гидроксихлорохин","77","Гидроксихлорохин","Форма выпуска",null,"","","","","","",null,"","",null,"",null,null,null,null,""]
["Гидроксихлорохин","Гидроксихлорохин","78","Плаквенил","Минимальная цена"]
["Гидроксихлорохин","Гидроксихлорохин","78","Плаквенил","Максимальная цена"]
["Гидроксихлорохин","Гидроксихлорохин","78","Плаквенил","Кол-во упаковок",{"$f":"SUM(G316:V316)","v":0}]
["Гидроксихлорохин","Гидроксихлорохин","78","Плаквенил","Форма выпуска",null,"","","","","","",null,"",""]
["Гидроксихлорохин","Гидроксихлорохин","79","Иммард","Минимальная цена"]
["Гидроксихлорохин","Гидроксихлорохин","79","Иммард","Максимальная цена"]
["Гидроксихлорохин","Гидроксихлорохин","79","Иммард","Кол-во упаковок",{"$f":"SUM(G320:V320)","v":0}]
["Гидроксихлорохин","Гидроксихлорохин","79","Иммард","Форма выпуска",null,"","","","","","",null,"","",null,""]
[14,"Азитромицин","80","Азитромицин","Минимальная цена",71,265,240,240,276,159,130,null,94,71,null,157,null,null,null,null,105]
["Азитромицин","Азитромицин","80","Азитромицин","Максимальная цена",433,276,276,276,276,278,433,null,141,71,null,306,null,null,null,null,105]
["Азитромицин","Азитромицин","80","Азитромицин","Кол-во упаковок",{"$f":"SUM(G324:V324)","v":298},12,19,84,11,7,60,null,31,38,null,23,null,null,null,null,13]
["Азитромицин","Азитромицин","80","Азитромицин","Форма выпуска","таблетки, капсулы","таблетки","капсулы, таблетки","таблетки"," таблетки","таблетки","таблетки",null,"таблетки","капсулы",null,"капсулы, таблетки",null,null,null,null,"таблетки"]
["Азитромицин","Азитромицин","81","Зиромин","Минимальная цена"]
["Азитромицин","Азитромицин","81","Зиромин","Максимальная цена"]
["Азитромицин","Азитромицин","81","Зиромин","Кол-во упаковок",{"$f":"SUM(G328:V328)","v":0}]
["Азитромицин","Азитромицин","81","Зиромин","Форма выпуска",null,"","","","","","",null,"","",null,"",null,null,null,null,""]
["Азитромицин","Азитромицин","82","Зи-фактор","Минимальная цена"]
["Азитромицин","Азитромицин","82","Зи-фактор","Максимальная цена"]
["Азитромицин","Азитромицин","82","Зи-фактор","Кол-во упаковок",{"$f":"SUM(G332:V332)","v":0}]
["Азитромицин","Азитромицин","82","Зи-фактор","Форма выпуска",null,"","","","","","",null,"","",null,""]
["Азитромицин","Азитромицин","83","Сумамед","Минимальная цена",238,238,239,451,null,455,466,null,null,null,null,323,null,null,null,null,496]
["Азитромицин","Азитромицин","83","Сумамед","Максимальная цена",496,238,466,457,null,457,466,null,null,null,null,458,null,null,null,null,496]
["Азитромицин","Азитромицин","83","Сумамед","Кол-во упаковок",{"$f":"SUM(G336:V336)","v":37},1,3,6,null,14,5,null,null,null,null,5,null,null,null,null,3]
["Азитромицин","Азитромицин","83","Сумамед","Форма выпуска","порошок  для суспензии для приема внутрь, таблетки, капсулы","порошок для суспензии для приема внутрь","таблетки","таблетки",null,"таблетки","таблетки, капсулы, суспензия",null,null,null,null,"порошок, таблетки",null,null,null,null,"таблетки"]
["Азитромицин","Азитромицин","84","Азидроп","Минимальная цена"]
["Азитромицин","Азитромицин","84","Азидроп","Максимальная цена"]
["Азитромицин","Азитромицин","84","Азидроп","Кол-во упаковок",{"$f":"SUM(G340:V340)","v":0}]
["Азитромицин","Азитромицин","84","Азидроп","Форма выпуска",null,"","","","","","",null,"",null,null,""]
[15,"Амоксициллин+Клавулановая кислота","85","Амоксициллин+Клавулановая кислота","Минимальная цена",146,null,null,null,null,null,null,null,146,null,null,291,null,null,null,null,710]
["Амоксициллин+Клавулановая кислота","Амоксициллин+Клавулановая кислота","85","Амоксициллин+Клавулановая кислота","Максимальная цена",710,null,null,null,null,null,null,null,146,null,null,706,null,null,null,null,710]
["Амоксициллин+Клавулановая кислота","Амоксициллин+Клавулановая кислота","85","Амоксициллин+Клавулановая кислота","Кол-во упаковок",{"$f":"SUM(G344:V344)","v":27},null,null,null,null,null,null,null,1,null,null,4,null,null,null,null,22]
["Амоксициллин+Клавулановая кислота","Амоксициллин+Клавулановая кислота","85","Амоксициллин+Клавулановая кислота","Форма выпуска","таблетки","","",null,null,"","",null,"таблетки",null,null,"таблетки",null,null,null,null,"таблетки"]
["Амоксициллин+Клавулановая кислота","Амоксициллин+Клавулановая кислота","86","Ранклав","Минимальная цена"]
["Амоксициллин+Клавулановая кислота","Амоксициллин+Клавулановая кислота","86","Ранклав","Максимальная цена"]
["Амоксициллин+Клавулановая кислота","Амоксициллин+Клавулановая кислота","86","Ранклав","Кол-во упаковок",{"$f":"SUM(G348:V348)","v":0}]
["Амоксициллин+Клавулановая кислота","Амоксициллин+Клавулановая кислота","86","Ранклав","Форма выпуска",null,null,null,"","","",null,null,"",null,null,""]
["Амоксициллин+Клавулановая кислота","Амоксициллин+Клавулановая кислота","87","Амоксиклав","Минимальная цена",140,null,363,341,null,null,314,null,null,211,null,611,null,null,null,null,140]
["Амоксициллин+Клавулановая кислота","Амоксициллин+Клавулановая кислота","87","Амоксиклав","Максимальная цена",611,null,593,363,null,null,408,null,null,211,null,611,null,null,null,null,140]
["Амоксициллин+Клавулановая кислота","Амоксициллин+Клавулановая кислота","87","Амоксиклав","Кол-во упаковок",{"$f":"SUM(G352:V352)","v":70},null,4,4,null,null,16,null,null,14,null,3,null,null,null,null,29]
["Амоксициллин+Клавулановая кислота","Амоксициллин+Клавулановая кислота","87","Амоксиклав","Форма выпуска","таблетки,  порошок для суспензии для приема внутрь, суспензия, ампулы ",null,"таблетки","таблетки, порошок для суспензии для приема внутрь",null,null,"таблетки, суспензия",null,null,"суспензия",null,"таблетки",null,null,null,null,"ампулы"]
["Амоксициллин+Клавулановая кислота","Амоксициллин+Клавулановая кислота","88","Медоклав","Минимальная цена"]
["Амоксициллин+Клавулановая кислота","Амоксициллин+Клавулановая кислота","88","Медоклав","Максимальная цена"]
["Амоксициллин+Клавулановая кислота","Амоксициллин+Клавулановая кислота","88","Медоклав","Кол-во упаковок",{"$f":"SUM(G356:V356)","v":0}]
["Амоксициллин+Клавулановая кислота","Амоксициллин+Клавулановая кислота","88","Медоклав","Форма выпуска",null,"","","","","","",null,null,"",null,"",null,null,null,null,""]
["Амоксициллин+Клавулановая кислота","Амоксициллин+Клавулановая кислота","89","Флемоклав Салютаб","Минимальная цена"]
["Амоксициллин+Клавулановая кислота","Амоксициллин+Клавулановая кислота","89","Флемоклав Салютаб","Максимальная цена"]
["Амоксициллин+Клавулановая кислота","Амоксициллин+Клавулановая кислота","89","Флемоклав Салютаб","Кол-во упаковок",{"$f":"SUM(G360:V360)","v":0}]
["Амоксициллин+Клавулановая кислота","Амоксициллин+Клавулановая кислота","89","Флемоклав Салютаб","Форма выпуска",null,"","","","",null,null,null,""]
["Амоксициллин+Клавулановая кислота","Амоксициллин+Клавулановая кислота","90","Рапиклав","Минимальная цена"]
["Амоксициллин+Клавулановая кислота","Амоксициллин+Клавулановая кислота","90","Рапиклав","Максимальная цена"]
["Амоксициллин+Клавулановая кислота","Амоксициллин+Клавулановая кислота","90","Рапиклав","Кол-во упаковок",{"$f":"SUM(G364:V364)","v":0}]
["Амоксициллин+Клавулановая кислота","Амоксициллин+Клавулановая кислота","90","Рапиклав","Форма выпуска",null,"","","","","","",null,"","",null,""]
[16,"Парацетамол","91","Парацетамол","Минимальная цена",10,13,12,12,12,13,12,null,13,10,null,31,null,null,null,null,106]
["Парацетамол","Парацетамол","91","Парацетамол","Максимальная цена",197,89,160,77,76,81,109,null,13,10,null,197,null,null,null,null,106]
["Парацетамол","Парацетамол","91","Парацетамол","Кол-во упаковок",{"$f":"SUM(G368:V368)","v":749},8,39,196,34,47,180,null,42,91,null,110,null,null,null,null,2]
["Парацетамол","Парацетамол","91","Парацетамол","Форма выпуска","суспензия, раствор для приема внутрь, таблетки","суспензия, раствор для приема внутрь, таблетки","суспензия, раствор для приема внутрь, таблетки","суспензия, раствор для приема внутрь, таблетки","суспензия, раствор для приема внутрь, таблетки","суспензия, раствор для приема внутрь","таблетки, суспензия",null,"таблетки","таблетки",null,"раствор, суспензия, таблетки",null,null,null,null,"таблетки"]
[17,"Ривароксабан*","92","Ксарелто","Минимальная цена",1987,null,3260,3410,3245,null,3215,null,null,1987,null,3935,null,null,null,null,3933]
["Ривароксабан*","Ривароксабан*","92","Ксарелто","Максимальная цена",4557,null,3750,3905,3245,null,4120,null,null,1987,null,4557,null,null,null,null,3933]
["Ривароксабан*","Ривароксабан*","92","Ксарелто","Кол-во упаковок",{"$f":"SUM(G372:V372)","v":24},null,3,7,2,null,4,null,null,1,null,6,null,null,null,null,1]
["Ривароксабан*","Ривароксабан*","92","Ксарелто","Форма выпуска","таблетки","","таблетки","таблетки","таблетки",null,"таблетки",null,null,"таблетки",null,"таблетки",null,null,null,null,"таблетки"]
[18,"Апиксабан","93","Эликвис","Минимальная цена",816,null,null,910,null,null,2760,null,null,816,null,1028,null,null,null,null,1092]
["Апиксабан","Апиксабан","93","Эликвис","Максимальная цена",3258,null,null,950,null,null,2830,null,null,816,null,3258,null,null,null,null,1092]
["Апиксабан","Апиксабан","93","Эликвис","Кол-во упаковок",{"$f":"SUM(G376:V376)","v":31},null,null,7,null,null,2,null,null,4,null,11,null,null,null,null,7]
["Апиксабан","Апиксабан","93","Эликвис","Форма выпуска","таблетки","","","таблетки","","","таблетки",null,null,"таблетки",null,"таблетки",null,null,null,null,"таблетки"]
[19,"Амоксициллин","94","Амоксициллин ЭКСПРЕСС","Минимальная цена",137,null,null,461,null,null,null,null,null,null,null,624,null,null,null,null,137]
["Амоксициллин","Амоксициллин","94","Амоксициллин ЭКСПРЕСС","Максимальная цена",624,null,null,461,null,null,null,null,null,null,null,624,null,null,null,null,137]
["Амоксициллин","Амоксициллин","94","Амоксициллин ЭКСПРЕСС","Кол-во упаковок",{"$f":"SUM(G380:V380)","v":26},null,null,8,null,null,null,null,null,null,null,1,null,null,null,null,17]
["Амоксициллин","Амоксициллин","94","Амоксициллин ЭКСПРЕСС","Форма выпуска","таблетки диспергируемые, таблетки","","","таблетки диспергируемые","","","",null,"","",null,"таблетки",null,null,null,null,"таблетки"]
["Амоксициллин","Амоксициллин","95","Оспамокс","Минимальная цена"]
["Амоксициллин","Амоксициллин","95","Оспамокс","Максимальная цена"]
["Амоксициллин","Амоксициллин","95","Оспамокс","Кол-во упаковок",{"$f":"SUM(G384:V384)","v":0}]
["Амоксициллин","Амоксициллин","95","Оспамокс","Форма выпуска",null,"","","","",null,"",null,"","",null,"",null,null,null,null,""]
["Амоксициллин","Амоксициллин","96","Флемоксин Салютаб","Минимальная цена"]
["Амоксициллин","Амоксициллин","96","Флемоксин Салютаб","Максимальная цена"]
["Амоксициллин","Амоксициллин","96","Флемоксин Салютаб","Кол-во упаковок"]
["Амоксициллин","Амоксициллин","96","Флемоксин Салютаб","Форма выпуска"]
["Амоксициллин","Амоксициллин","97","Амосин","Минимальная цена",65,68,null,null,null,170,null,null,null,65]
["Амоксициллин","Амоксициллин","97","Амосин","Максимальная цена",170,68,null,null,null,170,null,null,null,65]
["Амоксициллин","Амоксициллин","97","Амосин","Кол-во упаковок",{"$f":"SUM(G392:V392)","v":22},1,null,null,null,20,null,null,null,1]
["Амоксициллин","Амоксициллин","97","Амосин","Форма выпуска","таблетки","таблетки",null,null,"","таблетки",null,null,null,"таблетки",null,""]
["Амоксициллин","Амоксициллин","98","Амоксициллин Сандоз","Минимальная цена",98,null,null,null,200,null,null,null,null,98]
["Амоксициллин","Амоксициллин","98","Амоксициллин Сандоз","Максимальная цена",200,null,null,null,200,null,null,null,null,98]
["Амоксициллин","Амоксициллин","98","Амоксициллин Сандоз","Кол-во упаковок",{"$f":"SUM(G396:V396)","v":23},null,null,null,20,null,null,null,null,3]
["Амоксициллин","Амоксициллин","98","Амоксициллин Сандоз","Форма выпуска","таблетки",null,"","","таблетки",null,null,null,null,"таблетки"]
["Амоксициллин","Амоксициллин","99","Амоксициллин ДС","Минимальная цена",124,133,124,400,124,null,125,null,231]
["Амоксициллин","Амоксициллин","99","Амоксициллин ДС","Максимальная цена",403,400,400,400,124,null,199,null,403]
["Амоксициллин","Амоксициллин","99","Амоксициллин ДС","Кол-во упаковок",{"$f":"SUM(G400:V400)","v":95},3,19,1,13,null,17,null,42]
["Амоксициллин","Амоксициллин","99","Амоксициллин ДС","Форма выпуска","таблетки диспергируемые, капсулы, таблетки","таблетки диспергируемые","капсулы, таблетки диспергируемые","таблетки диспергируемые","капсулы",null,"таблетки",null,"таблетки","",null,""]
["Амоксициллин","Амоксициллин","100","Амоксициллин Экобол","Минимальная цена"]
["Амоксициллин","Амоксициллин","100","Амоксициллин Экобол","Максимальная цена"]
["Амоксициллин","Амоксициллин","100","Амоксициллин Экобол","Кол-во упаковок",{"$f":"SUM(G404:V404)","v":0}]
["Амоксициллин","Амоксициллин","100","Амоксициллин Экобол","Форма выпуска",null,null,null,null,null,null,null,null,"","",null,"",null,null,null,null,""]
[20,"Левофлок-сацин","101","Левофлоксацин","Минимальная цена",165,null,null,null,600,211,404,null,412,318,null,165]
["Левофлоксацин","Левофлоксацин","101","Левофлоксацин","Максимальная цена",865,null,null,null,605,605,808,null,412,318,null,865]
["Левофлоксацин","Левофлоксацин","101","Левофлоксацин","Кол-во упаковок",{"$f":"SUM(G408:V408)","v":29},null,null,null,3,3,7,null,4,2,null,10]
["Левофлоксацин","Левофлоксацин","101","Левофлоксацин","Форма выпуска","таблетки, капли ","",null,null,"таблетки","таблетки","таблетки",null,"таблетки","таблетки",null,"таблетки, капли",null,null,null,null,""]
["Левофлоксацин","Левофлоксацин","102","Бактофлокс","Минимальная цена"]
["Левофлоксацин","Левофлоксацин","102","Бактофлокс","Максимальная цена"]
["Левофлоксацин","Левофлоксацин","102","Бактофлокс","Кол-во упаковок",{"$f":"SUM(G412:V412)","v":0}]
["Левофлоксацин","Левофлоксацин","102","Бактофлокс","Форма выпуска",null,"","","","","",null,null,"","",null,"",null,null,null,null,""]
["Левофлоксацин","Левофлоксацин","103","Корфецин-СОЛОфарм","Минимальная цена"]
["Левофлоксацин","Левофлоксацин","103","Корфецин-СОЛОфарм","Максимальная цена"]
["Левофлоксацин","Левофлоксацин","103","Корфецин-СОЛОфарм","Кол-во упаковок",{"$f":"SUM(G416:V416)","v":0}]
["Левофлоксацин","Левофлоксацин","103","Корфецин-СОЛОфарм","Форма выпуска",null,"","","","","","",null,"","",null,"",null,null,null,null,""]
["Левофлоксацин","Левофлоксацин","104","Левоксимед","Минимальная цена"]
["Левофлоксацин","Левофлоксацин","104","Левоксимед","Максимальная цена"]
["Левофлоксацин","Левофлоксацин","104","Левоксимед","Кол-во упаковок",{"$f":"SUM(G420:V420)","v":0}]
["Левофлоксацин","Левофлоксацин","104","Левоксимед","Форма выпуска",null,"","","","","","",null,"","",null,"",null,null,null,null,""]
["Левофлоксацин","Левофлоксацин","105","Люфи","Минимальная цена"]
["Левофлоксацин","Левофлоксацин","105","Люфи","Максимальная цена"]
["Левофлоксацин","Левофлоксацин","105","Люфи","Кол-во упаковок",{"$f":"SUM(G424:V424)","v":0}]
["Левофлоксацин","Левофлоксацин","105","Люфи","Форма выпуска",null,"","","","","","",null,"","",null,"",null,null,null,null,""]
["Левофлоксацин","Левофлоксацин","106","Рофлдокс-Скан","Минимальная цена"]
["Левофлоксацин","Левофлоксацин","106","Рофлдокс-Скан","Максимальная цена"]
["Левофлоксацин","Левофлоксацин","106","Рофлдокс-Скан","Кол-во упаковок",{"$f":"SUM(G428:V428)","v":0}]
["Левофлоксацин","Левофлоксацин","106","Рофлдокс-Скан","Форма выпуска",null,"","","","","","",null,"","",null,"",null,null,null,null,""]
["Левофлоксацин","Левофлоксацин","107","Флексид","Минимальная цена"]
["Левофлоксацин","Левофлоксацин","107","Флексид","Максимальная цена"]
["Левофлоксацин","Левофлоксацин","107","Флексид","Кол-во упаковок",{"$f":"SUM(G432:V432)","v":0}]
["Левофлоксацин","Левофлоксацин","107","Флексид","Форма выпуска",null,"","","","","","",null,"","",null,"",null,null,null,null,""]
["Левофлоксацин","Левофлоксацин","108","Леволет Р","Минимальная цена"]
["Левофлоксацин","Левофлоксацин","108","Леволет Р","Максимальная цена"]
["Левофлоксацин","Левофлоксацин","108","Леволет Р","Кол-во упаковок",{"$f":"SUM(G436:V436)","v":0}]
["Левофлоксацин","Левофлоксацин","108","Леволет Р","Форма выпуска",null,"","","","","","",null,"","",null,null,null,null,null,null,""]
["Левофлоксацин","Левофлоксацин","109","Лефлобакт Форте","Минимальная цена"]
["Левофлоксацин","Левофлоксацин","109","Лефлобакт Форте","Максимальная цена"]
["Левофлоксацин","Левофлоксацин","109","Лефлобакт Форте","Кол-во упаковок",{"$f":"SUM(G440:V440)","v":0}]
["Левофлоксацин","Левофлоксацин","109","Лефлобакт Форте","Форма выпуска",null,"","","","","","",null,"","",null,"",null,null,null,null,""]
["Левофлоксацин","Левофлоксацин","110","ОД-Левокс","Минимальная цена"]
["Левофлоксацин","Левофлоксацин","110","ОД-Левокс","Максимальная цена"]
["Левофлоксацин","Левофлоксацин","110","ОД-Левокс","Кол-во упаковок",{"$f":"SUM(G444:V444)","v":0}]
["Левофлоксацин","Левофлоксацин","110","ОД-Левокс","Форма выпуска",null,"","","","","",null,null,"","",null,"",null,null,null,null,""]
["Левофлоксацин","Левофлоксацин","111","Таваник","Минимальная цена",495,null,null,null,null,null,690,null,null,null,null,495]
["Левофлоксацин","Левофлоксацин","111","Таваник","Максимальная цена",789,null,null,null,null,null,700,null,null,null,null,789]
["Левофлоксацин","Левофлоксацин","111","Таваник","Кол-во упаковок",{"$f":"SUM(G448:V448)","v":9},null,null,null,null,null,5,null,null,null,null,4]
["Левофлоксацин","Левофлоксацин","111","Таваник","Форма выпуска","таблетки","","","","","","таблетки",null,null,"",null,"таблетки",null,null,null,null,""]
["Левофлоксацин","Левофлоксацин","112","Лефокцин Биокс","Минимальная цена"]
["Левофлоксацин","Левофлоксацин","112","Лефокцин Биокс","Максимальная цена"]
["Левофлоксацин","Левофлоксацин","112","Лефокцин Биокс","Кол-во упаковок",{"$f":"SUM(G452:V452)","v":0}]
["Левофлоксацин","Левофлоксацин","112","Лефокцин Биокс","Форма выпуска",null,"","","","","","",null,"","",null,"",null,null,null,null,""]
["Левофлоксацин","Левофлоксацин","113","Ремедиа","Минимальная цена"]
["Левофлоксацин","Левофлоксацин","113","Ремедиа","Максимальная цена"]
["Левофлоксацин","Левофлоксацин","113","Ремедиа","Кол-во упаковок",{"$f":"SUM(G456:V456)","v":0}]
["Левофлоксацин","Левофлоксацин","113","Ремедиа","Форма выпуска",null,"","","","","","",null,"","",null,""]
["Левофлоксацин","Левофлоксацин","114","Лебел","Минимальная цена"]
["Левофлоксацин","Левофлоксацин","114","Лебел","Максимальная цена"]
["Левофлоксацин","Левофлоксацин","114","Лебел","Кол-во упаковок",{"$f":"SUM(G460:V460)","v":0}]
["Левофлоксацин","Левофлоксацин","114","Лебел","Форма выпуска",null,"","","","","","",null,"","",null,"",null,null,null,null,""]
["Левофлоксацин","Левофлоксацин","115","Левофлокс","Минимальная цена"]
["Левофлоксацин","Левофлоксацин","115","Левофлокс","Максимальная цена"]
["Левофлоксацин","Левофлоксацин","115","Левофлокс","Кол-во упаковок",{"$f":"SUM(G464:V464)","v":0}]
["Левофлоксацин","Левофлоксацин","115","Левофлокс","Форма выпуска",null,"","","","","","",null,"","",null,"",null,null,null,null,""]
["Левофлоксацин","Левофлоксацин","116","Хайлефлокс","Минимальная цена"]
["Левофлоксацин","Левофлоксацин","116","Хайлефлокс","Максимальная цена"]
["Левофлоксацин","Левофлоксацин","116","Хайлефлокс","Кол-во упаковок",{"$f":"SUM(G468:V468)","v":0}]
["Левофлоксацин","Левофлоксацин","116","Хайлефлокс","Форма выпуска",null,"","","","","","",null,"","",null,"",null,null,null,null,""]
["Левофлоксацин","Левофлоксацин","117","Левотек","Минимальная цена"]
["Левофлоксацин","Левофлоксацин","117","Левотек","Максимальная цена"]
["Левофлоксацин","Левофлоксацин","117","Левотек","Кол-во упаковок",{"$f":"SUM(G472:V472)","v":0}]
["Левофлоксацин","Левофлоксацин","117","Левотек","Форма выпуска",null,"","","","","","",null,"","",null,"",null,null,null,null,""]
["Левофлоксацин","Левофлоксацин","118","Флорацид","Минимальная цена"]
["Левофлоксацин","Левофлоксацин","118","Флорацид","Максимальная цена"]
["Левофлоксацин","Левофлоксацин","118","Флорацид","Кол-во упаковок",{"$f":"SUM(G476:V476)","v":0}]
["Левофлоксацин","Левофлоксацин","118","Флорацид","Форма выпуска",null,"","","","","","",null,"","",null,"",null,null,null,null,""]
["Левофлоксацин","Левофлоксацин","119","Элефлокс","Минимальная цена"]
["Левофлоксацин","Левофлоксацин","119","Элефлокс","Максимальная цена"]
["Левофлоксацин","Левофлоксацин","119","Элефлокс","Кол-во упаковок",{"$f":"SUM(G480:V480)","v":0}]
["Левофлоксацин","Левофлоксацин","119","Элефлокс","Форма выпуска",null,"","","","","","",null,"","",null,"",null,null,null,null,""]
["Левофлоксацин","Левофлоксацин","120","Левостар","Минимальная цена"]
["Левофлоксацин","Левофлоксацин","120","Левостар","Максимальная цена"]
["Левофлоксацин","Левофлоксацин","120","Левостар","Кол-во упаковок",{"$f":"SUM(G484:V484)","v":0}]
["Левофлоксацин","Левофлоксацин","120","Левостар","Форма выпуска",null,"","","","","","",null,"","",null,"",null,null,null,null,""]
["Левофлоксацин","Левофлоксацин","121","МАКЛЕВО","Минимальная цена"]
["Левофлоксацин","Левофлоксацин","121","МАКЛЕВО","Максимальная цена"]
["Левофлоксацин","Левофлоксацин","121","МАКЛЕВО","Кол-во упаковок",{"$f":"SUM(G488:V488)","v":0}]
["Левофлоксацин","Левофлоксацин","121","МАКЛЕВО","Форма выпуска",null,"","","","","","",null,"","",null,"",null,null,null,null,""]
["Левофлоксацин","Левофлоксацин","122","Лефлобакт","Минимальная цена"]
["Левофлоксацин","Левофлоксацин","122","Лефлобакт","Максимальная цена"]
["Левофлоксацин","Левофлоксацин","122","Лефлобакт","Кол-во упаковок",{"$f":"SUM(G492:V492)","v":0}]
["Левофлоксацин","Левофлоксацин","122","Лефлобакт","Форма выпуска",null,"","",null,"","","",null,"","",null,"",null,null,null,null,""]
["Левофлоксацин","Левофлоксацин","123","Глево","Минимальная цена",95,null,null,null,null,null,null,null,null,null,null,null,null,null,null,null,95]
["Левофлоксацин","Левофлоксацин","123","Глево","Максимальная цена",95,null,null,null,null,null,null,null,null,null,null,null,null,null,null,null,95]
["Левофлоксацин","Левофлоксацин","123","Глево","Кол-во упаковок",{"$f":"SUM(G496:V496)","v":6},null,null,null,null,null,null,null,null,null,null,null,null,null,null,null,6]
["Левофлоксацин","Левофлоксацин","123","Глево","Форма выпуска","таблетки","","",null,"","","",null,"","",null,"",null,null,null,null,"таблетки"]
[21,"Моксифлок-сацин","124","Мокси","Минимальная цена"]
["Моксифлоксацин","Моксифлоксацин","124","Мокси","Максимальная цена"]
["Моксифлоксацин","Моксифлоксацин","124","Мокси","Кол-во упаковок",{"$f":"SUM(G500:V500)","v":0}]
["Моксифлоксацин","Моксифлоксацин","124","Мокси","Форма выпуска",null,"","","","","","",null,"","",null,"",null,null,null,null,""]
["Моксифлоксацин","Моксифлоксацин","125","Моксифлоксацин","Минимальная цена"]
["Моксифлоксацин","Моксифлоксацин","125","Моксифлоксацин","Максимальная цена"]
["Моксифлоксацин","Моксифлоксацин","125","Моксифлоксацин","Кол-во упаковок",{"$f":"SUM(G504:V504)","v":0}]
["Моксифлоксацин","Моксифлоксацин","125","Моксифлоксацин","Форма выпуска",null,"","","","","","",null,"","",null,"",null,null,null,null,""]
["Моксифлоксацин","Моксифлоксацин","126","Кимокс","Минимальная цена"]
["Моксифлоксацин","Моксифлоксацин","126","Кимокс","Максимальная цена"]
["Моксифлоксацин","Моксифлоксацин","126","Кимокс","Кол-во упаковок",{"$f":"SUM(G508:V508)","v":0}]
["Моксифлоксацин","Моксифлоксацин","126","Кимокс","Форма выпуска",null,"","","","","","",null,"","",null,"",null,null,null,null,""]
["Моксифлоксацин","Моксифлоксацин","127","Моксикум ВМ","Минимальная цена"]
["Моксифлоксацин","Моксифлоксацин","127","Моксикум ВМ","Максимальная цена"]
["Моксифлоксацин","Моксифлоксацин","127","Моксикум ВМ","Кол-во упаковок",{"$f":"SUM(G512:V512)","v":0}]
["Моксифлоксацин","Моксифлоксацин","127","Моксикум ВМ","Форма выпуска",null,"","","","","","",null,"","",null,"",null,null,null,null,""]
["Моксифлоксацин","Моксифлоксацин","128","Моксифло","Минимальная цена"]
["Моксифлоксацин","Моксифлоксацин","128","Моксифло","Максимальная цена"]
["Моксифлоксацин","Моксифлоксацин","128","Моксифло","Кол-во упаковок",{"$f":"SUM(G516:V516)","v":0}]
["Моксифлоксацин","Моксифлоксацин","128","Моксифло","Форма выпуска",null,"","","","","","",null,"","",null,"",null,null,null,null,""]
["Моксифлоксацин","Моксифлоксацин","129","Моксистар","Минимальная цена"]
["Моксифлоксацин","Моксифлоксацин","129","Моксистар","Максимальная цена"]
["Моксифлоксацин","Моксифлоксацин","129","Моксистар","Кол-во упаковок",{"$f":"SUM(G520:V520)","v":0}]
["Моксифлоксацин","Моксифлоксацин","129","Моксистар","Форма выпуска",null,"","","","","","",null,"","",null,"",null,null,null,null,""]
["Моксифлоксацин","Моксифлоксацин","130","Мофлаксия","Минимальная цена"]
["Моксифлоксацин","Моксифлоксацин","130","Мофлаксия","Максимальная цена"]
["Моксифлоксацин","Моксифлоксацин","130","Мофлаксия","Кол-во упаковок",{"$f":"SUM(G524:V524)","v":0}]
["Моксифлоксацин","Моксифлоксацин","130","Мофлаксия","Форма выпуска",null,"","","","","","",null,"","",null,null,null,null,null,null,""]
["Моксифлоксацин","Моксифлоксацин","131","Мофлокс 400","Минимальная цена"]
["Моксифлоксацин","Моксифлоксацин","131","Мофлокс 400","Максимальная цена"]
["Моксифлоксацин","Моксифлоксацин","131","Мофлокс 400","Кол-во упаковок",{"$f":"SUM(G528:V528)","v":0}]
["Моксифлоксацин","Моксифлоксацин","131","Мофлокс 400","Форма выпуска",null,"","","","","","",null,"","",null,"",null,null,null,null,""]
["Моксифлоксацин","Моксифлоксацин","132","Алвелон-МФ","Минимальная цена"]
["Моксифлоксацин","Моксифлоксацин","132","Алвелон-МФ","Максимальная цена"]
["Моксифлоксацин","Моксифлоксацин","132","Алвелон-МФ","Кол-во упаковок",{"$f":"SUM(G532:V532)","v":0}]
["Моксифлоксацин","Моксифлоксацин","132","Алвелон-МФ","Форма выпуска",null,"","","","","","",null,"","",null,"",null,null,null,null,""]
["Моксифлоксацин","Моксифлоксацин","133","Ультрамокс","Минимальная цена"]
["Моксифлоксацин","Моксифлоксацин","133","Ультрамокс","Максимальная цена"]
["Моксифлоксацин","Моксифлоксацин","133","Ультрамокс","Кол-во упаковок",{"$f":"SUM(G536:V536)","v":0}]
["Моксифлоксацин","Моксифлоксацин","133","Ультрамокс","Форма выпуска",null,"","","","","","",null,"","",null,"",null,null,null,null,""]
["Моксифлоксацин","Моксифлоксацин","134","Симофлокс","Минимальная цена"]
["Моксифлоксацин","Моксифлоксацин","134","Симофлокс","Максимальная цена"]
["Моксифлоксацин","Моксифлоксацин","134","Симофлокс","Кол-во упаковок",{"$f":"SUM(G540:V540)","v":0}]
["Моксифлоксацин","Моксифлоксацин","134","Симофлокс","Форма выпуска",null,"","","","","","",null,"","",null,"",null,null,null,null,""]
["Моксифлоксацин","Моксифлоксацин","135","Хайнемокс","Минимальная цена"]
["Моксифлоксацин","Моксифлоксацин","135","Хайнемокс","Максимальная цена"]
["Моксифлоксацин","Моксифлоксацин","135","Хайнемокс","Кол-во упаковок",{"$f":"SUM(G544:V544)","v":0}]
["Моксифлоксацин","Моксифлоксацин","135","Хайнемокс","Форма выпуска",null,"","","","","","",null,"","",null,"",null,null,null,null,""]
["Моксифлоксацин","Моксифлоксацин","136","Ротомокс","Минимальная цена"]
["Моксифлоксацин","Моксифлоксацин","136","Ротомокс","Максимальная цена"]
["Моксифлоксацин","Моксифлоксацин","136","Ротомокс","Кол-во упаковок",{"$f":"SUM(G548:V548)","v":0}]
["Моксифлоксацин","Моксифлоксацин","136","Ротомокс","Форма выпуска",null,"","","","","","",null,"","",null,"",null,null,null,null,""]
["Моксифлоксацин","Моксифлоксацин","137","Авелокс","Минимальная цена"]
["Моксифлоксацин","Моксифлоксацин","137","Авелокс","Максимальная цена"]
["Моксифлоксацин","Моксифлоксацин","137","Авелокс","Кол-во упаковок",{"$f":"SUM(G552:V552)","v":0}]
["Моксифлоксацин","Моксифлоксацин","137","Авелокс","Форма выпуска",null,"","","","","","",null,"","",null,null,null,null,null,null,""]
["Моксифлоксацин","Моксифлоксацин","138","Моксимак","Минимальная цена"]
["Моксифлоксацин","Моксифлоксацин","138","Моксимак","Максимальная цена"]
["Моксифлоксацин","Моксифлоксацин","138","Моксимак","Кол-во упаковок",{"$f":"SUM(G556:V556)","v":0}]
["Моксифлоксацин","Моксифлоксацин","138","Моксимак","Форма выпуска",null,"","","","","","",null,"","",null,"",null,null,null,null,""]
["Моксифлоксацин","Моксифлоксацин","139","Плевилокс","Минимальная цена"]
["Моксифлоксацин","Моксифлоксацин","139","Плевилокс","Максимальная цена"]
["Моксифлоксацин","Моксифлоксацин","139","Плевилокс","Кол-во упаковок",{"$f":"SUM(G560:V560)","v":0}]
["Моксифлоксацин","Моксифлоксацин","139","Плевилокс","Форма выпуска",null,"","","","","","",null,"","",null,"",null,null,null,null,""]
[22,"Дексаметазон","140","Дексамед","Минимальная цена"]
["Дексаметазон","Дексаметазон","140","Дексамед","Максимальная цена"]
["Дексаметазон","Дексаметазон","140","Дексамед","Кол-во упаковок",{"$f":"SUM(G564:V564)","v":0}]
["Дексаметазон","Дексаметазон","140","Дексамед","Форма выпуска",null,"","","",null,"",null,null,"","",null,""]
["Дексаметазон","Дексаметазон","141","Дексаметазон","Минимальная цена",31,32,31,31,213,56,44,null,36.1,118,null,59,null,null,null,null,45]
["Дексаметазон","Дексаметазон","141","Дексаметазон","Максимальная цена",435,222,199,222,213,56,254,null,36.1,118,null,435,null,null,null,null,45]
["Дексаметазон","Дексаметазон","141","Дексаметазон","Кол-во упаковок",{"$f":"SUM(G568:V568)","v":91},5,5,39,5,3,5,null,5,5,null,14,null,null,null,null,5]
["Дексаметазон","Дексаметазон","141","Дексаметазон",null,"таблетки, капли глазные, раствор для инъекций","таблетки, капли глазные","капли глазные,  таблетки, раствор для инъекций","таблетки, капли глазные, раствор для инъекций","раствор для инъекций","таблетки","таблетки, ампулы",null,"таблетки","ампулы",null,"капли, таблетки",null,null,null,null,"таблетки"]
["Дексаметазон","Дексаметазон","142","Дексазон","Минимальная цена"]
["Дексаметазон","Дексаметазон","142","Дексазон","Максимальная цена"]
["Дексаметазон","Дексаметазон","142","Дексазон","Кол-во упаковок",{"$f":"SUM(G572:V572)","v":0}]
["Дексаметазон","Дексаметазон","142","Дексазон","Форма выпуска",null,"","","","","",null,null,"","",null,"",null,null,null,null,""]
["Дексаметазон","Дексаметазон","143","Мегадексан","Минимальная цена",579,null,null,579]
["Дексаметазон","Дексаметазон","143","Мегадексан","Максимальная цена",579,null,null,579]
["Дексаметазон","Дексаметазон","143","Мегадексан","Кол-во упаковок",{"$f":"SUM(G576:V576)","v":2},null,null,2]
["Дексаметазон","Дексаметазон","143","Мегадексан","Форма выпуска","таблетки","","","таблетки","","","",null,"","",null,""]
[23,"Преднизолон","144","Преднизолон","Минимальная цена",21,130,126,170,null,null,130,null,35,21,null,38,null,null,null,null,82]
["Преднизолон","Преднизолон","144","Преднизолон","Максимальная цена",211,196,126,170,null,null,196,null,35,21,null,182,null,null,null,null,211]
["Преднизолон","Преднизолон","144","Преднизолон","Кол-во упаковок",{"$f":"SUM(G580:V580)","v":37},2,1,1,null,null,6,null,8,3,null,5,null,null,null,null,11]
["Преднизолон","Преднизолон","144","Преднизолон","Форма выпуска","раствор для инъекций, таблетки, мазь","раствор для инъекций","таблетки","раствор для инъекций, таблетки, мазь",null,null,"ампулы, таблетки",null,"мазь","мазь",null,"мазь, раствор, таблетки",null,null,null,null,"таблетки, ампулы"]
["Преднизолон","Преднизолон","145","Медопред","Минимальная цена",null,null,null,null,null,null,""]
["Преднизолон","Преднизолон","145","Медопред","Максимальная цена"]
["Преднизолон","Преднизолон","145","Медопред","Кол-во упаковок",{"$f":"SUM(G584:V584)","v":0}]
["Преднизолон","Преднизолон","145","Медопред","Форма выпуска",null,"","",null,"","","",null,"","",null,null,null,null,null,null,""]
["Преднизолон","Преднизолон","146","Преднизол","Минимальная цена",34,null,null,null,null,null,null,null,119,117,null,34]
["Преднизолон","Преднизолон","146","Преднизол","Максимальная цена",119,null,null,null,null,null,null,null,119,117,null,34]
["Преднизолон","Преднизолон","146","Преднизол","Кол-во упаковок",{"$f":"SUM(G588:V588)","v":13},null,null,null,null,null,null,null,10,2,null,1]
["Преднизолон","Преднизолон","146","Преднизол","Форма выпуска","таблетки, ампулы","","",null,"","","",null,"таблетки","таблетки",null,"ампула"]
[24,"Метилпред-низолон","147","Метилпреднизолоннатив","Минимальная цена"]
["Метилпреднизолон","Метилпреднизолон","147","Метилпреднизолон-натив","Максимальная цена"]
["Метилпреднизолон","Метилпреднизолон","147","Метилпреднизолон-натив","Кол-во упаковок",{"$f":"SUM(G592:V592)","v":0}]
["Метилпреднизолон","Метилпреднизолон","147","Метилпреднизолон-натив","Форма выпуска",null,"","","","","","",null,"","",null,null,null,null,null,null,""]
["Метилпреднизолон","Метилпреднизолон","148","Метипред Орион","Минимальная цена",437,null,null,null,null,null,null,null,null,null,null,437]
["Метилпреднизолон","Метилпреднизолон","148","Метипред Орион","Максимальная цена",440,null,null,null,null,null,null,null,null,null,null,440]
["Метилпреднизолон","Метилпреднизолон","148","Метипред Орион","Кол-во упаковок",{"$f":"SUM(G596:V596)","v":4},null,null,null,null,null,null,null,null,null,null,4]
["Метилпреднизолон","Метилпреднизолон","148","Метипред Орион","Форма выпуска","таблетки","","","","","","",null,"","",null,"таблетки",null,null,null,null,""]
["Метилпреднизолон","Метилпреднизолон","149","Ивипред","Минимальная цена"]
["Метилпреднизолон","Метилпреднизолон","149","Ивипред","Максимальная цена"]
["Метилпреднизолон","Метилпреднизолон","149","Ивипред","Кол-во упаковок",{"$f":"SUM(G600:V600)","v":0}]
["Метилпреднизолон","Метилпреднизолон","149","Ивипред","Форма выпуска",null,"","","","","","",null,"","",null,"",null,null,null,null,""]
["Метилпреднизолон","Метилпреднизолон","150","СОЛУ-МЕДРОЛ НоваМедика","Минимальная цена"]
["Метилпреднизолон","Метилпреднизолон","150","СОЛУ-МЕДРОЛ НоваМедика","Максимальная цена"]
["Метилпреднизолон","Метилпреднизолон","150","СОЛУ-МЕДРОЛ НоваМедика","Кол-во упаковок",{"$f":"SUM(G604:V604)","v":0}]
["Метилпреднизолон","Метилпреднизолон","150","СОЛУ-МЕДРОЛ НоваМедика","Форма выпуска",null,"","",null,"","","",null,"","",null,"",null,null,null,null,""]
["Метилпреднизолон","Метилпреднизолон","151","Метипред","Минимальная цена",424,426,null,null,424,null,427]
["Метилпреднизолон","Метилпреднизолон","151","Метипред","Максимальная цена",1315,426,null,null,424,null,1315]
["Метилпреднизолон","Метилпреднизолон","151","Метипред","Кол-во упаковок",{"$f":"SUM(G608:V608)","v":4},1,null,null,1,null,2]
["Метилпреднизолон","Метилпреднизолон","151","Метипред","Форма выпуска","таблетки","таблетки","",null,"таблетки","","таблетки",null,null,"",null,"",null,null,null,null,""]
["Метилпреднизолон","Метилпреднизолон","152","Медрол","Минимальная цена"]
["Метилпреднизолон","Метилпреднизолон","152","Медрол","Максимальная цена"]
["Метилпреднизолон","Метилпреднизолон","152","Медрол","Кол-во упаковок",{"$f":"SUM(G612:V612)","v":0}]
["Метилпреднизолон","Метилпреднизолон","152","Медрол","Форма выпуска",null,"","",null,"","","","","","",null,"",null,null,null,null,""]
[null,null,null,null,null,null,{"$f":"G8+G12+G16+G20+G24+G28+G32+G36+G40+G44+G48+G52+G56+G60+G64+G68+G72+G76+G80+G84+G88+G92+G96+G100+G104+G108+G112+G116+G120+G124+G128+G132+G136+G140+G144+G148+G152+G156+G160+G164+G168+G172+G176+G180+G184+G188+G192+G196+G200+G204+G208+G212+G216+G220+G224+G228+G232+G236+G240+G244+G248+G252+G256+G260+G264+G268+G272+G276+G280+G284+G288+G292+G296+G300+G304+G308+G312+G316+G320+G324+G328+G332+G336+G340+G344+G348+G352+G356+G360+G364+G368+G372+G376+G380+G384+G388+G392+G396+G400+G404+G408+G412+G416+G420+G424+G428+G432+G436+G440+G444+G448+G452+G456+G460+G464+G468+G472+G476+G480+G484+G488+G492+G496+G500+G504+G508+G512+G516+G520+G524+G528+G532+G536+G540+G544+G548+G552+G556+G560+G564+G568+G572+G576+G580+G584+G588+G592+G596+G600+G604+G608+G612","v":138},{"$f":"H8+H12+H16+H20+H24+H28+H32+H36+H40+H44+H48+H52+H56+H60+H64+H68+H72+H76+H80+H84+H88+H92+H96+H100+H104+H108+H112+H116+H120+H124+H128+H132+H136+H140+H144+H148+H152+H156+H160+H164+H168+H172+H176+H180+H184+H188+H192+H196+H200+H204+H208+H212+H216+H220+H224+H228+H232+H236+H240+H244+H248+H252+H256+H260+H264+H268+H272+H276+H280+H284+H288+H292+H296+H300+H304+H308+H312+H316+H320+H324+H328+H332+H336+H340+H344+H348+H352+H356+H360+H364+H368+H372+H376+H380+H384+H388+H392+H396+H400+H404+H408+H412+H416+H420+H424+H428+H432+H436+H440+H444+H448+H452+H456+H460+H464+H468+H472+H476+H480+H484+H488+H492+H496+H500+H504+H508+H512+H516+H520+H524+H528+H532+H536+H540+H544+H548+H552+H556+H560+H564+H568+H572+H576+H580+H584+H588+H592+H596+H600+H604+H608+H612","v":168},{"$f":"I8+I12+I16+I20+I24+I28+I32+I36+I40+I44+I48+I52+I56+I60+I64+I68+I72+I76+I80+I84+I88+I92+I96+I100+I104+I108+I112+I116+I120+I124+I128+I132+I136+I140+I144+I148+I152+I156+I160+I164+I168+I172+I176+I180+I184+I188+I192+I196+I200+I204+I208+I212+I216+I220+I224+I228+I232+I236+I240+I244+I248+I252+I256+I260+I264+I268+I272+I276+I280+I284+I288+I292+I296+I300+I304+I308+I312+I316+I320+I324+I328+I332+I336+I340+I344+I348+I352+I356+I360+I364+I368+I372+I376+I380+I384+I388+I392+I396+I400+I404+I408+I412+I416+I420+I424+I428+I432+I436+I440+I444+I448+I452+I456+I460+I464+I468+I472+I476+I480+I484+I488+I492+I496+I500+I504+I508+I512+I516+I520+I524+I528+I532+I536+I540+I544+I548+I552+I556+I560+I564+I568+I572+I576+I580+I584+I588+I592+I596+I600+I604+I608+I612","v":729},{"$f":"J8+J12+J16+J20+J24+J28+J32+J36+J40+J44+J48+J52+J56+J60+J64+J68+J72+J76+J80+J84+J88+J92+J96+J100+J104+J108+J112+J116+J120+J124+J128+J132+J136+J140+J144+J148+J152+J156+J160+J164+J168+J172+J176+J180+J184+J188+J192+J196+J200+J204+J208+J212+J216+J220+J224+J228+J232+J236+J240+J244+J248+J252+J256+J260+J264+J268+J272+J276+J280+J284+J288+J292+J296+J300+J304+J308+J312+J316+J320+J324+J328+J332+J336+J340+J344+J348+J352+J356+J360+J364+J368+J372+J376+J380+J384+J388+J392+J396+J400+J404+J408+J412+J416+J420+J424+J428+J432+J436+J440+J444+J448+J452+J456+J460+J464+J468+J472+J476+J480+J484+J488+J492+J496+J500+J504+J508+J512+J516+J520+J524+J528+J532+J536+J540+J544+J548+J552+J556+J560+J564+J568+J572+J576+J580+J584+J588+J592+J596+J600+J604+J608+J612","v":148},{"$f":"K8+K12+K16+K20+K24+K28+K32+K36+K40+K44+K48+K52+K56+K60+K64+K68+K72+K76+K80+K84+K88+K92+K96+K100+K104+K108+K112+K116+K120+K124+K128+K132+K136+K140+K144+K148+K152+K156+K160+K164+K168+K172+K176+K180+K184+K188+K192+K196+K200+K204+K208+K212+K216+K220+K224+K228+K232+K236+K240+K244+K248+K252+K256+K260+K264+K268+K272+K276+K280+K284+K288+K292+K296+K300+K304+K308+K312+K316+K320+K324+K328+K332+K336+K340+K344+K348+K352+K356+K360+K364+K368+K372+K376+K380+K384+K388+K392+K396+K400+K404+K408+K412+K416+K420+K424+K428+K432+K436+K440+K444+K448+K452+K456+K460+K464+K468+K472+K476+K480+K484+K488+K492+K496+K500+K504+K508+K512+K516+K520+K524+K528+K532+K536+K540+K544+K548+K552+K556+K560+K564+K568+K572+K576+K580+K584+K588+K592+K596+K600+K604+K608+K612","v":172},{"$f":"L8+L12+L16+L20+L24+L28+L32+L36+L40+L44+L48+L52+L56+L60+L64+L68+L72+L76+L80+L84+L88+L92+L96+L100+L104+L108+L112+L116+L120+L124+L128+L132+L136+L140+L144+L148+L152+L156+L160+L164+L168+L172+L176+L180+L184+L188+L192+L196+L200+L204+L208+L212+L216+L220+L224+L228+L232+L236+L240+L244+L248+L252+L256+L260+L264+L268+L272+L276+L280+L284+L288+L292+L296+L300+L304+L308+L312+L316+L320+L324+L328+L332+L336+L340+L344+L348+L352+L356+L360+L364+L368+L372+L376+L380+L384+L388+L392+L396+L400+L404+L408+L412+L416+L420+L424+L428+L432+L436+L440+L444+L448+L452+L456+L460+L464+L468+L472+L476+L480+L484+L488+L492+L496+L500+L504+L508+L512+L516+L520+L524+L528+L532+L536+L540+L544+L548+L552+L556+L560+L564+L568+L572+L576+L580+L584+L588+L592+L596+L600+L604+L608+L612","v":485},0,223,234,0,339,0,0,0,0,199]
[]
[null,null,null,null,"Итого",{"$f":"F8+F12+F16+F20+F24+F28+F32+F36+F40+F44+F48+F52+F56+F60+F64+F68+F72+F76+F80+F84+F88+F92+F96+F100+F104+F108+F112+F116+F120+F124+F128+F132+F136+F140+F144+F148+F152+F156+F160+F164+F168+F172+F176+F180+F184+F188+F192+F196+F200+F204+F208+F212+F216+F220+F224+F228+F232+F236+F240+F244+F248+F252+F256+F260+F264+F268+F272+F276+F280+F284+F288+F292+F296+F300+F304+F308+F312+F316+F320+F324+F328+F332+F336+F340+F344+F348+F352+F356+F360+F364+F368+F372+F376+F380+F384+F388+F392+F396+F400+F404+F408+F412+F416+F420+F424+F428+F432+F436+F440+F444+F448+F452+F456+F460+F464+F468+F472+F476+F480+F484+F488+F492+F496+F500+F504+F508+F512+F516+F520+F524+F528+F532+F536+F540+F544+F548+F552+F556+F560+F564+F568+F572+F576+F580+F584+F588+F592+F596+F600+F604+F608+F612","v":2835},{"$f":"H629","v":2900}]
[null,"наименование аптечной организации",null,null,"на 28.04.2023",null,"на 21.04.2023",null,null,"изменения за неделю",null,null,null,null,null,null,{"$f":"E617","v":"на 28.04.2023"}]
[null,null,null,null,"из 24 МНН","кол-во упак","из 24 МНН","кол-во упак","из 24 МНН","штуки","%"]
[1,"АО \"Октябрьская аптека\", пгт.Приобье, ул.Югорская, д.1",null,null,11,{"$f":"G614","v":138},11,139,{"$f":"E619-G619","v":0},{"$f":"F619-H619","v":-1},{"$f":"F619/H619","v":0.9928057553956835},null,null,null,null,null,19,null,null,null,null,"МНН",{"$f":"Q619/A590","v":0.79166666666666663}]
[2,"АО \"Октябрьская аптека\", пгт.Талинка, мкр.Центральный, д.45",null,null,11,{"$f":"H614","v":168},11,172,{"$f":"E620-G620","v":0},-4,{"$f":"F620/H620","v":0.97674418604651159},null,null,null,null,null,50,null,null,null,null,"торг. наименов",{"$f":"Q620/C610","v":0.32894736842105265}]
[3,"АО \"Октябрьская аптека\", пгт.Октябрьское, ул.Ленина, д.15",null,null,13,{"$f":"I614","v":729},14,813,{"$f":"E621-G621","v":-1},-84,0.89667896678966785,null,null,null,null,null,{"$f":"F629","v":2835},null,null,null,null,"упаковки"]
[4,"АО \"Октябрьская аптека\", п.Уньюган, ул.Газпромовская, д.22",null,null,11,{"$f":"J614","v":148},12,135,-1,13,1.0962962962962963,null,null,null,null,null,{"$f":"J629","v":-65},null,null,null,null,"упаковок"]
[5,"АО \"Октябрьская аптека\", с.Перегребное, ул.Советская, д.25",null,null,10,{"$f":"K614","v":172},10,211,0,-39,0.81516587677725116,{"$f":"SUM(F619:F623)","v":1355},null,{"$f":"SUM(H619:H623)","v":1470},{"$f":"L623-N623","v":-115}]
[6,"АО \"Няганская аптека\", пгт.Талинка,        1 мкр, д.44",null,null,15,{"$f":"L614","v":485},15,465,0,20,1.043010752688172,null,null,null,null,null,10,null,null,null,null,"мин цена (парацетамол)"]
[7,"Аптека ООО \"Прогресс\", с.М.Атлым, ул.Московская, д.2В",null,null,13,{"$f":"N614","v":223},12,169,1,{"$f":"F625-H625","v":54},1.319526627218935,null,null,null,null,null,4557,null,null,null,null,"макс цена (ксарелто)"]
[8,"Аптека \"ООО Волосевич\", п.Уньюган, ул.Тюменская, д.53Б",null,null,15,{"$f":"O614","v":234},15,234,0,{"$f":"F626-H626","v":0},1]
[9,"ООО \"Ригла\", пгт. Приобье, ул.Центральная, д.1А",null,null,18,{"$f":"Q614","v":339},19,303,-1,{"$f":"F627-H627","v":36},1.1188118811881189]
[10,"Аптека ИП Простякова И.А., с.Перегребное, ул.Советская, д.23",null,null,17,{"$f":"V614","v":199},17,259,0,{"$f":"F628-H628","v":-60},0.76833976833976836]
[null,"Итого по району",null,null,"19 МНН",{"$f":"SUM(F619:F628)","v":2835},"19 МНН",{"$f":"SUM(H619:H628)","v":2900},null,{"$f":"F629-H629","v":-65},0.97758620689655173]
[null,"Исполнитель:",null,"Липова И.Н. , тел. 8(34678) 28103 (внутр.408)"]